Workbook

Sheet POBL
A1: NO | D1: JENIS PEKERJAAN | F1: SUMBER DANA | G1: BIDANG | H1: DESA | I1: KECAMATAN | J1: ANGGARAN (Rp) | L1: REKANAN | M1: KONTRAK | P1: JANGKA WAKTU | R1: RENCANA KAS | T1: REALISASI KEUANGAN | V1: REALISASI THD RENKAS | W1: REALISASI FISIK | X1: OUTPUT | Z1: KETERANGAN
J2: PENETAPAN | K2: PERUBAHAN | M2: TGL KONTRAK | N2: NO KONTRAK | O2: NILAI KONTRAK | P2: MULAI | Q2: SELESAI | R2: Jumlah (Rp) | S2: % | T2: Jumlah (Rp) | U2: % | V2: % | W2: % | X2: OUTPUT | Y2: SATUAN
A3: 1 | D3: 2 | F3: 3 | G3: 4 | I3: 5 | J3: 6 | K3: 7 | L3: 8 | M3: 9 | N3: 10 | O3: 11 | P3: 12 | Q3: 13 | R3: 14 | T3: 15 | V3: 16 | W3: 17 | X3: 18 | Z3: 19
D4: DINAS PEKERJAAN UMUM DAN PENATAAN RUANG | J4: =SUM(J6,J40,J92,J125,J201,J204,J208,J223,J430,J433) -> 170,529,379,292 | K4: 187,404,374,120 | R4: =SUM(R6,R40,R92,R125,R201,R204,R208,R223,R430,R433) -> 173,104,324,503 | S4: =R4/K4*100 -> 92.37 | T4: =SUM(T6,T40,T92,T125,T201,T204,T208,T223,T430,T433) -> 175,873,709,942 | U4: =T4/K4*100 -> 93.85 | V4: =T4/R4*100 -> 101.60 | W4: =AVERAGE(W6,W40,W92,W125,W201,W204,W208,W223,W430,W433) -> 94.26%
A6: A | D6: PROGRAM PENUNJANG URUSAN PEMERINTAHAN DAERAH KABUPATEN/KOTA | G6: SEK | J6: =SUM(J7,J19,J21,J31,J35) -> 12,649,898,912 | K6: =SUM(K7,K19,K21,K28,K31,K35) -> 13,128,621,547 | R6: =SUM(R7,R19,R21,R31,R35) -> 10,900,474,121 | S6: =R6/K6*100 -> 83.03 | T6: =SUM(T7,T19,T21,T31,T35,T28) -> 12,386,714,888 | U6: =T6/K6*100 -> 94.35 | V6: =T6/R6*100 -> 113.63 | W6: =T6/K6*100/100 -> 94.35%
B7: a | D7: Perencanaan, Penganggaran, dan Evaluasi Kinerja Perangkat Daerah | F7: APBD | G7: BP | J7: =J8+J18 -> 70,000,000 | K7: 731,255,885 | R7: =SUM(R8) -> 69,494,000 | S7: =R7/K7*100 -> 9.50 | T7: =SUM(T8,T18) -> 720,078,883 | U7: 98.47 | V7: 1,036.17 | W7: =T7/K7*100/100 -> 98.47%
C8: 1 | D8: Penyusunan Dokumen Perencanaan Perangkat Daerah | F8: APBD | G8: BP | J8: 70,000,000 | K8: =SUM(K9:K17) -> 666,255,885 | R8: ='RENKAS 2024'!D10 -> 69,494,000 | S8: =R8/K8*100 -> 10.43 | T8: 659,090,883 | U8: 98.92 | V8: 948.41 | W8: =T8/K8*100/100 -> 98.92%
C9: 1 | D9: Penyusunan DED Islamic Center | F9: APBD | G9: BP | J9: 0 | K9: 75,000,000 | L9: CV. TIGA DIMENSI | M9: 29 OKTOBER 2024 | N9: 000.3.2/4718/SPK/DPUPR/2024 | O9: 74,508,000 | P9: 29 OKTOBER 2024 | Q9: 28 DESEMBER 2024 | T9: 74,508,000 | U9: =T9/O9*100 -> 100.00 | W9: 100.00%
C10: 2 | D10: Penyusunan DED Perbaikan Alinyemen Rake Panangkaran | F10: APBD | G10: BP | J10: 0 | K10: 75,000,000 | L10: CV. MULYA SYANDANA KONSULTAN | M10: 29 OKTOBER 2024 | N10: 000.3.2/4721/SPK/DPUPR/2024 | O10: 74,569,000 | P10: 29 OKTOBER 2024 | Q10: 28 DESEMBER 2024 | T10: 74,569,000 | U10: 100.00 | W10: 100.00%
C11: 3 | D11: Penyusunan DED Perencanaan Koridor Jalan A Yani | F11: APBD | G11: BP | J11: 0 | K11: 50,000,000 | L11: CV. WAHANA KARYA PUTRATAMA | M11: 29 OKTOBER 2024 | N11: 000.3.2/4724/SPK/DPUPR/2024 | O11: 49,716,000 | P11: 29 OKTOBER 2024 | Q11: 28 DESEMBER 2024 | T11: 49,716,000 | U11: 100.00 | W11: 100.00%
C12: 4 | D12: Perencanaan Rehabilitasi & Pengembangan Makodim 0707 Wonosobo | F12: APBD | G12: BP | J12: 0 | K12: 50,000,000 | L12: CV. WAHANA KARYA PUTRATAMA | M12: 2024-11-11 | N12: 000.3.2/4900/SPK/DPUPR/2024 | O12: 49,728,000 | P12: 2024-11-11 | Q12: 26 DESEMBER 2024 | T12: 49,728,000 | U12: 100.00 | W12: 100.00%
C13: 5 | D13: Perencanaan Revitalisasi Komplek T.Jogonegoro | F13: APBD | G13: BP | J13: 0 | K13: 50,000,000 | L13: CV. INDONESIA MUDA | M13: 2024-11-11 | N13: 000.3.2/4903/SPK/DPUPR/2024 | O13: 49,716,000 | P13: 2024-11-11 | Q13: 26 DESEMBER 2024 | T13: 49,716,000 | U13: 100.00 | W13: 100.00%
C14: 6 | D14: Penyusunan DED Embung Mlandi | F14: APBD | G14: BP | J14: 0 | K14: 64,700,000 | L14: CV. SUMINAR JAYA | M14: 29 OKTOBER 2024 | N14: 000.3.2/4712/SPK/DPUPR/2024 | O14: 64,241,000 | P14: 29 OKTOBER 2024 | Q14: 28 DESEMBER 2024 | T14: 64,241,000 | U14: 100.00 | W14: 100.00%
C15: 7 | D15: Penyusunan DED Embung Sudungdewo dan Mudal | F15: APBD | G15: BP | K15: 50,000,000 | L15: CV. SUMINAR JAYA | M15: 29 OKTOBER 2024 | N15: 000.3.2/4715/SPK/DPUPR/2024 | O15: 49,644,000 | P15: 29 OKTOBER 2024 | Q15: 28 DESEMBER 2024 | T15: 49,644,000 | U15: 100.00 | W15: 100.00%
C16: 8 | D16: Workshop Perencanaan Infrastruktur Berkelanjutan | F16: APBD | G16: BP | K16: 50,000,000 | L16: PT JALAN JALAN SUKSES MANDIRI | T16: 49,839,000 | U16: =T16/K16*100 -> 99.68 | W16: 100.00%
D17: BIAYA UMUM | F17: APBD | G17: BP | K17: 201,555,885
C18: 2 | D18: Evaluasi Kinerja Perangkat Daerah | F18: APBD | G18: BP | J18: 0 | K18: 65,000,000 | S18: =R18/K18*100 -> 0 | T18: 60,988,000 | U18: =T18/K18*100 -> 93.83 | W18: =T18/K18*100/100 -> 93.83%
B19: b | D19: Administrasi Keuangan Perangkat Daerah | F19: APBD | G19: SEK | J19: =J20 -> 10,685,898,912 | K19: 10,453,365,662 | R19: =R20 -> 9,155,542,763 | S19: 87.58 | T19: =T20 -> 9,774,142,329 | U19: 93.50 | V19: =T19/R19*100 -> 106.76 | W19: 93.50%
C20: 1 | D20: Penyediaan Gaji dan Tunjangan ASN | F20: APBD | G20: SEK | J20: 10,685,898,912 | K20: 10,453,365,662 | R20: ='RENKAS 2024'!D12 -> 9,155,542,763 | S20: 87.58 | T20: 9,774,142,329 | U20: 93.50 | V20: 106.76 | W20: 93.50%
B21: c | D21: Administrasi Umum Perangkat Daerah | F21: APBD | G21: SEK | J21: =SUM(J22:J27) -> 392,000,000 | K21: 405,000,000 | R21: =SUM(R22:R27) -> 357,792,293 | S21: 88.34 | T21: =SUM(T22:T27) -> 397,425,491 | U21: 98.13 | V21: 111.08 | W21: 98.13%
C22: 1 | D22: Penyediaan Komponen Instalasi Listrik/Penerangan Bangunan Kantor | F22: APBD | G22: SEK | J22: 10,000,000 | K22: 15,000,000 | R22: ='RENKAS 2024'!D14:D19 -> 8,735,000 | S22: 58.23 | T22: 13,318,650 | U22: 88.79 | V22: 152.47 | W22: 88.79%
C23: 2 | D23: Penyediaan Peralatan dan Perlengkapan Kantor | F23: APBD | G23: SEK | J23: 50,000,000 | K23: 50,000,000 | R23: 47,973,140 | S23: 95.95 | T23: 49,306,825 | U23: 98.61 | V23: 102.78 | W23: 98.61%
C24: 3 | D24: Penyediaan Peralatan Rumah Tangga | F24: APBD | G24: SEK | J24: 60,000,000 | K24: 65,000,000 | R24: 54,799,950 | S24: 84.31 | T24: 60,334,064 | U24: 92.82 | V24: 110.10 | W24: 92.82%
C25: 4 | D25: Penyediaan Barang Cetakan dan Penggandaan | F25: APBD | G25: SEK | J25: 20,000,000 | K25: 23,000,000 | R25: 18,015,700 | S25: 78.33 | T25: 22,680,810 | U25: 98.61 | V25: 125.89 | W25: 98.61%
C26: 5 | D26: Penyediaan Bahan Bacaan dan Peraturan Perundang-undangan | F26: APBD | G26: SEK | J26: 2,000,000 | K26: 2,000,000 | R26: 1,666,670 | S26: 83.33 | T26: 2,000,000 | U26: 100.00 | V26: 120.00 | W26: 100.00%
C27: 6 | D27: Penyelenggaraan Rapat Koordinasi dan Konsultasi SKPD | F27: APBD | G27: SEK | J27: 250,000,000 | K27: 250,000,000 | R27: 226,601,833 | S27: 90.64 | T27: 249,785,142 | U27: 99.91 | V27: 110.23 | W27: 99.91%
B28: d | D28: Barang Milik Daerah Penunjang Urusan Pemerintah Daerah | F28: APBD | G28: SEK | J28: =J29+J30 -> 0 | K28: =SUM(K29:K30) -> 130,966,000 | R28: =SUM(R29:R30) -> 0 | S28: 0 | T28: =SUM(T29:T30) -> 127,633,050 | U28: 97.46 | W28: 97.46%
C29: 1 | D29: Pengadaan Mebel | F29: APBD | G29: SEK | J29: 0 | K29: 40,000,000 | T29: 39,570,000 | U29: 98.93 | W29: 98.93%
C30: 2 | D30: Pengadaan Peralatan dan Mesin Lainnya | F30: APBD | G30: SEK | J30: 0 | K30: 90,966,000 | T30: 88,063,050 | U30: 96.81 | W30: 96.81%
B31: e | D31: Penyediaan Jasa Penunjang Urusan Pemerintahan Daerah | F31: APBD | G31: SEK | J31: =SUM(J32:J34) -> 1,027,000,000 | K31: 888,034,000 | R31: =SUM(R32:R34) -> 880,762,565 | S31: =R31/K31*100 -> 99.18 | T31: =SUM(T32:T34) -> 864,154,655 | U31: 97.31 | V31: =T31/R31*100 -> 98.11 | W31: 97.31%
C32: 1 | D32: Penyediaan Jasa Surat Menyurat | F32: APBD | G32: SEK | J32: 2,000,000 | K32: 2,000,000 | R32: ='RENKAS 2024'!D21:D23 -> 2,000,000 | S32: 100.00 | T32: 1,800,000 | U32: 90.00 | V32: 90.00 | W32: 90.00%
C33: 2 | D33: Penyediaan Jasa Komunikasi, Sumber Daya Air dan Listrik | F33: APBD | G33: SEK | J33: 100,000,000 | K33: 92,000,000 | R33: 95,833,000 | S33: 104.17 | T33: 85,169,398 | U33: 92.58 | V33: 88.87 | W33: 92.58%
C34: 3 | D34: Penyediaan Jasa Pelayanan Umum Kantor | F34: APBD | G34: SEK | J34: 925,000,000 | K34: 794,034,000 | R34: 782,929,565 | S34: 98.60 | T34: 777,185,257 | U34: 97.88 | V34: 99.27 | W34: 97.88%
B35: f | D35: Pemeliharaan Barang Milik Daerah Penunjang Urusan Pemerintahan Daerah | F35: APBD | G35: SEK | J35: =SUM(J36:J38) -> 475,000,000 | K35: 520,000,000 | R35: =SUM(R36:R38) -> 436,882,500 | S35: 84.02 | T35: =SUM(T36:T38) -> 503,280,480 | U35: 96.78 | V35: 115.20 | W35: 96.78%
C36: 1 | D36: Penyediaan Jasa Pemeliharaan, Biaya Pemeliharaan, Pajak dan Perizinan Kendaraan Dinas Operasional atau Lapangan | F36: APBD | G36: SEK | J36: 350,000,000 | K36: 330,000,000 | R36: ='RENKAS 2024'!D25:D27 -> 314,052,500 | S36: 95.17 | T36: 321,432,983 | U36: 97.40 | V36: 102.35 | W36: 97.40%
C37: 2 | D37: Pemeliharaan Peralatan dan Mesin Lainnya | F37: APBD | G37: SEK | J37: 25,000,000 | K37: 40,000,000 | R37: 24,170,000 | S37: 60.43 | T37: 32,138,000 | U37: 80.35 | V37: 132.97 | W37: 80.35%
C38: 3 | D38: Pemeliharaan/Rehabilitasi Gedung Kantor dan Bangunan Lainnya | F38: APBD | G38: SEK | J38: 100,000,000 | K38: 150,000,000 | R38: 98,660,000 | S38: 65.77 | T38: 149,709,497 | U38: 99.81 | V38: 151.74 | W38: 99.81%
A40: B | D40: PROGRAM PENGELOLAAN SUMBER DAYA AIR (SDA) | G40: SDA | J40: =SUM(J41,J42,J73,J81,J86) -> 8,161,250,000 | K40: 9,151,250,000 | R40: =SUM(R41,R42,R73,R81,R86) -> 8,361,969,800 | S40: =R40/K40*100 -> 91.38 | T40: =SUM(T41,T42,T73,T81,T86) -> 8,798,904,761 | U40: =T40/K40*100 -> 96.15 | V40: =T40/R40*100 -> 105.23 | W40: =AVERAGE(W41,W42,W73,W81,W86) -> 97.27%
B41: a | D41: Pembinaan dan Pemberdayaan Kelembagaan Pengelolaan SDA Kewenangan Kabupaten/Kota | F41: APBD | G41: SDA | J41: 50,000,000 | K41: 50,000,000 | R41: ='RENKAS 2024'!D30 -> 49,901,000 | S41: =R41/K41*100 -> 99.80 | T41: 43,174,000 | U41: =T41/K41*100 -> 86.35 | V41: 86.52 | W41: =T41/K41*100/100 -> 86.35%
B42: b | D42: Rehabilitasi Jaringan Irigasi Permukaan | G42: SDA | J42: =SUM(J43:J64) -> 4,861,250,000 | K42: =SUM(K43:K72) -> 5,851,250,000 | R42: ='RENKAS 2024'!D32 -> 5,245,813,920 | S42: =R42/K42*100 -> 89.65 | T42: 5,580,543,035 | U42: =T42/K42*100 -> 95.37 | V42: 106.38 | W42: =AVERAGE(W43:W72) -> 100.00%
C43: 1 | D43: Rehabilitasi jaringan irigasi Haji Kelurahan Sapuran Kecamatan Sapuran | F43: APBD | G43: SDA | H43: Sapuran | I43: Sapuran | J43: 190,000,000 | K43: 190,000,000 | L43: CV. REJEKI ULTRA | M43: 2024-09-18 | N43: 000.3/691/PPK-SDA/DPUPR/2024 | O43: 187,923,000 | P43: 2024-09-18 | Q43: 2024-11-16 | T43: =93961500+93961500 -> 187,923,000 | U43: =T43/O43*100 -> 100.00 | W43: 100.00% | X43: 185 | Y43: M
C44: 2 | D44: Pembangunan Senderan irigasi Blok Kali Sarangan Dusun Bejidukuh Desa Bejiarum Kec.Kertek, Kab. Wonosobo | F44: APBD | G44: SDA | H44: Bejiarum | I44: Kertek | J44: 190,000,000 | K44: 190,000,000 | L44: CV. LANGGENG JAYA | M44: 2024-09-18 | N44: 000.3/692.2/PPK-SDA/DPUPR/2024 | O44: 189,578,000 | P44: 2024-09-18 | Q44: 2024-11-16 | T44: =94789000+94789000 -> 189,578,000 | U44: =T44/O44*100 -> 100.00 | W44: 100.00% | X44: 75 | Y44: M
C45: 3 | D45: Rehabilitasi jaringan irigasi gemenggeng kelurahan kalikajar kec. kalikajar, Kab. Wonosobo | F45: APBD | G45: SDA | H45: Kalikajar | I45: Kalikajar | J45: 190,000,000 | K45: 190,000,000 | L45: CV. LANGGENG JAYA | M45: 2024-09-18 | N45: 000.3/692/PPK-SDA/DPUPR/2024 | O45: 186,071,000 | P45: 2024-09-18 | Q45: 2024-11-16 | T45: =93035500+93035500 -> 186,071,000 | U45: 100.00 | W45: 100.00% | X45: 200 | Y45: M
C46: 4 | D46: Rehabilitasi irigasi wangan tengah Dusun Ngelo, Desa Sudungdewo, Kec. Kertek, Kab. Wonosobo | F46: APBD | G46: SDA | H46: Sudungdewo | I46: Kertek | J46: 190,000,000 | K46: 190,000,000 | L46: CV. LANGGENG JAYA | M46: 2024-09-18 | N46: 000.3/692.1/PPK-SDA/DPUPR/2024 | O46: 186,015,000 | P46: 2024-09-18 | Q46: 2024-11-16 | T46: 186,015,000 | U46: 100.00 | W46: 100.00% | X46: 175 | Y46: M
C47: 5 | D47: Pembangunan Senderan dan Saluran Irigasi Sikintil Limbangan Kel. Mudal Kec. Mojotengah | F47: APBD | G47: SDA | H47: Limbangan | I47: Mojotengah | J47: 95,000,000 | K47: 95,000,000 | L47: CV. WAHYU KARYA AGUNG | M47: 2024-09-18 | N47: 000.3/695/PPK-SDA/DPUPR/2024 | O47: 93,411,000 | P47: 2024-09-18 | Q47: 2024-11-01 | T47: 93,411,000 | U47: 100.00 | W47: 100.00% | X47: 75 | Y47: M
C48: 6 | D48: Rehabilitasi Jaringan Irigasi Sejadi Kel. Kejiwan, Kec. Wonosobo | F48: APBD | G48: SDA | H48: Kejiwan | I48: Wonosobo | J48: 190,000,000 | K48: 190,000,000 | L48: CV. WIDYA KARYA | M48: 2024-10-08 | N48: 000.3/761/PPK-SDA/DPUPR/2024 | O48: 185,000,000 | P48: 8 Oktober 2024 | Q48: 6 Desember 2024 | T48: =92500000+92500000 -> 185,000,000 | U48: 100.00 | W48: 100.00% | X48: 165 | Y48: M
C49: 7 | D49: Rehabilitasi Jaringan Irigasi Jambean RT.10 RW.05 Binangun | F49: APBD | G49: SDA | H49: Wringinanom | I49: Kertek | J49: 95,000,000 | K49: 95,000,000 | L49: CV. PRAKARSA | M49: 2024-09-27 | N49: 000.3/728/PPK-SDA/DPUPR/2024 | O49: 94,661,000 | P49: 2024-09-27 | Q49: 2024-11-10 | T49: 94,661,000 | U49: 100.00 | W49: 100.00% | X49: 70 | Y49: M
C50: 8 | D50: Senderan Saluran Irigasi Blok Sigintung Kel. Kejiwan Wonosobo | F50: APBD | G50: SDA | H50: Kejiwan | I50: Wonosobo | J50: 190,000,000 | K50: 190,000,000 | L50: CV. REJEKI ULTRA | M50: 2024-09-18 | N50: 000.3/691.1/PPK-SDA/DPUPR/2024 | O50: 186,118,000 | P50: 2024-09-18 | Q50: 2024-11-16 | T50: 186,118,000 | U50: 100.00 | W50: 100.00% | X50: 160 | Y50: M
C51: 9 | D51: Rehabilitasi Jaringan Irigasi Curug Bebek Dusun Karanganyar Desa Lancar Kec. Wadaslintang | F51: APBD | G51: SDA | H51: Lancar | I51: Wadaslintang | J51: 95,000,000 | K51: 95,000,000 | L51: CV. DONI WIJAYA PRATAMA | M51: 2024-09-18 | N51: 000.3/693.1/PPK-SDA/DPUPR/2024 | O51: 94,501,000 | P51: 2024-09-18 | Q51: 2024-11-01 | T51: 94,501,000 | U51: 100.00 | W51: 100.00% | X51: 85 | Y51: M
C52: 10 | D52: Rehabilitasi Jaringan Irigasi Kedungnongko Blok Selokromo | F52: APBD | G52: SDA | H52: Krasak | I52: Leksono | J52: 190,000,000 | K52: 190,000,000 | L52: CV. DONI WIJAYA PRATAMA | M52: 2024-09-18 | N52: 000.3/693/PPK-SDA/DPUPR/2024 | O52: 186,574,000 | P52: 2024-09-18 | Q52: 2024-11-16 | T52: 186,574,000 | U52: 100.00 | W52: 100.00% | X52: 125 | Y52: M
C53: 11 | D53: Rehabilitasi DI Klitih Desa Bojasari Kertek | F53: APBD | G53: SDA | H53: Maduretno | I53: Kalikajar | J53: 180,500,000 | K53: 180,500,000 | L53: CV. DONI WIJAYA PRATAMA | M53: 2024-09-25 | N53: 000.3/718/PPK-SDA/DPUPR/2024 | O53: 177,285,000 | P53: 2024-09-25 | Q53: 2024-11-23 | T53: 177,285,000 | U53: 100.00 | W53: 100.00% | X53: 130 | Y53: M
C54: 12 | D54: Pembangunan Senderan Irigasi Kali Wangan Aji RT 01 RW 12 Kalianget Wonosobo | F54: APBD | G54: SDA | H54: Sendangsari | I54: Mojotengah | J54: 190,000,000 | K54: 190,000,000 | L54: CV. BERKAH SEKAWAN | M54: 2024-09-27 | N54: 000.3/727/PPK-SDA/DPUPR/2024 | O54: 183,331,000 | P54: 2024-09-27 | Q54: 2024-11-25 | T54: =91665500+91665500 -> 183,331,000 | U54: 100.00 | W54: 100.00% | X54: 85 | Y54: M
C55: 13 | D55: Rehabilitasi DI Ampobendo Desa Kagungan Kecamatan Kepil | F55: APBD | G55: SDA | H55: Kagungan | I55: Kepil | J55: 190,000,000 | K55: 190,000,000 | L55: CV. EKA MUKTI | M55: 2024-09-27 | N55: 000.3/726/PPK-SDA/DPUPR/2024 | O55: 183,324,000 | P55: 2024-09-27 | Q55: 2024-11-25 | T55: =91662000+91662000 -> 183,324,000 | U55: 100.00 | W55: 100.00% | X55: 170 | Y55: M
C56: 14 | D56: Rehabilitasi Jaringan Irigasi Mungkung | F56: DAK | G56: SDA | H56: Perboto | I56: Kalikajar | J56: 875,000,000 | K56: 875,000,000 | L56: CV. BAGAMAYA CHAKTI | M56: 9 Juli 2024 | N56: 000.3.3/382.A/PPK-SDA/DPUPR/2024 | O56: 839,129,000 | P56: 9 Juli 2024 | Q56: 2024-11-05 | T56: =251738700+587390300 -> 839,129,000 | U56: 100.00 | W56: 100.00% | X56: 54.37 | Y56: Ha
C57: 15 | D57: Rehabilitasi Jaringan Irigasi Pasar | F57: DAK | G57: SDA | H57: Sindupaten | I57: Kertek | J57: 500,000,000 | K57: 500,000,000 | L57: CV. NARATAS KARYA MANDIRI | M57: 9 Juli 2024 | N57: 000.3.3/381.A/PPK-SDA/DPUPR/2024 | O57: 477,777,000 | P57: 9 Juli 2024 | Q57: 2024-11-05 | T57: 477,777,000 | U57: 100.00 | W57: 100.00% | X57: 34.3 | Y57: Ha
C58: 16 | D58: Rehabilitasi Jaringan Irigasi Parakandowo | F58: DAK | G58: SDA | H58: Plunjaran | I58: Wadaslintang | J58: 1,000,000,000 | K58: 1,000,000,000 | L58: CV. JAGAD SATRIA | M58: 9 Juli 2024 | N58: 000.3.3/383.A/PPK-SDA/DPUPR/2024 | O58: 958,617,000 | P58: 9 Juli 2024 | Q58: 2024-11-05 | T58: 958,617,000 | U58: 100.00 | W58: 100.00% | X58: 37.66 | Y58: Ha
C59: 17 | D59: BIAYA UMUM | F59: APBD | G59: SDA | J59: 93,250,000 | K59: 93,250,000
D60: KONSULTAN
C61: 1 | D61: Konsultan Pengawas Rehabilitasi Jaringan Irigasi (APBD) | F61: APBD | G61: SDA | J61: 50,000,000 | K61: 50,000,000 | L61: CV. SUMINAR JAYA | M61: 11 September 2024 | N61: 000.3.2/672.1/PPK-SDA/DPUPR/2024 | O61: 49,820,000 | P61: 11 September 2024 | Q61: 24 November 2024 | T61: 49,820,000 | U61: =T61/O61*100 -> 100.00 | W61: 100.00%
C62: 2 | D62: Konsultan Perencana Rehabilitasi Jaringan Irigasi (APBD) | F62: APBD | G62: SDA | J62: 50,000,000 | K62: 50,000,000 | L62: CV. KREASI ANAK NEGERI | M62: 2024-04-03 | N62: 000.3.2/0101.A/PPK-SDA/DPUPR/2024 | O62: 48,141,000 | P62: 2024-04-03 | Q62: 17 Mei 2024 | T62: 48,141,000 | U62: =T62/O62*100 -> 100.00 | W62: 100.00%
C63: 3 | D63: Konsultan Pengawas Rehabilitasi Jaringan Irigasi (DAK) | F63: DAK | G63: SDA | J63: 67,500,000 | K63: 67,500,000 | L63: CV. SUMINAR JAYA | M63: 2024-07-08 | N63: 000.3.2/376.A/PPK-SDA/DPUPR/2024 | O63: 66,441,000 | P63: 2024-07-08 | Q63: 2024-11-05 | T63: 66,441,000 | U63: 100.00 | W63: 100.00%
C64: 4 | D64: Konsultan Survey dan Penyusunan e-PAKSI (DAK) | F64: DAK | G64: SDA | J64: 50,000,000 | K64: 50,000,000 | L64: CV. KREASI ANAK NEGERI | M64: 2024-04-17 | N64: 000.3.2/0121.A/PPK-SDA/DPUPR/2024 | O64: 49,735,000 | P64: 2024-04-17 | Q64: 2024-05-31 | T64: 49,735,000 | U64: 100.00 | W64: 100.00%
D65: PERUBAHAN PENJABARAN
C66: 1 | D66: Pembangunan Kerusakan Saluran Air Irigasi Pingit Dsn. Sumpet Kepil | F66: APBD | G66: SDA | J66: 0 | K66: 200,000,000 | L66: CV. PILIHAN PERMATA | M66: 2024-09-18 | N66: 000.3/694/PPK-SDA/DPUPR/2024 | O66: 189,967,000 | P66: 2024-09-18 | Q66: 2024-11-16 | T66: =94983500+94983500 -> 189,967,000 | U66: =T66/O66*100 -> 100.00 | W66: 100.00%
C67: 2 | D67: Revitalisasi Irigasi Geblok RW. 08 Kelurahan Mlipak Kec. Wonosobo | F67: APBD | G67: SDA | J67: 0 | K67: 0 | Z67: Dihapus (Ganti Judul)
C68: 3 | D68: Revitalisasi Pembuang Irigasi Mangli Kelurahan Mlipak Kecamatan Wonosobo | F68: APBD | G68: SDA | K68: 190,000,000 | L68: CV. REJEKI ULTRA | M68: 2024-11-01 | N68: 000.3/856/PPK-SDA/DPUPR/2024 | O68: 185,007,000 | P68: 2024-11-01 | Q68: 15 Desember 2024 | T68: =92503500+92503500 -> 185,007,000 | U68: =T68/O68*100 -> 100.00 | W68: 100.00%
D69: PERUBAHAN
C70: 1 | D70: Pembangunan Senderan Irigasi Bido | F70: APBD | G70: SDA | K70: 200,000,000 | L70: CV. WIDYA KARYA | M70: 2024-11-05 | N70: 000.3/869/PPK-SDA/DPUPR/2024 | O70: 194,800,000 | P70: 2024-11-05 | Q70: 19 Desember 2024 | T70: 194,800,000 | U70: =T70/O70*100 -> 100.00 | W70: 100.00%
C71: 2 | D71: Rehabilitasi Daerah Irigasi Blawong | F71: APBD | G71: SDA | K71: 200,000,000 | L71: CV. WIDYA KARYA | M71: 2024-11-05 | N71: 000.3/869.1/PPK-SDA/DPUPR/2024 | O71: 196,000,000 | P71: 2024-11-05 | Q71: 19 Desember 2024 | T71: 196,000,000 | U71: =T71/O71*100 -> 100.00 | W71: 100.00%
C72: 3 | D72: Rehabilitasi Daerah Irigasi Kedunggupit | F72: APBD | G72: SDA | K72: 200,000,000 | L72: CV. NARATAS KARYA MANDIRI | M72: 2024-11-05 | N72: 000.3/869.2/PPK-SDA/DPUPR/2024 | O72: 196,777,000 | P72: 2024-11-05 | Q72: 19 Desember 2024 | T72: 196,777,000 | U72: =T72/O72*100 -> 100.00 | W72: 100.00%
B73: c | D73: Operasi dan Pemeliharaan Jaringan Irigasi Permukaan | F73: APBD | G73: SDA | J73: =SUM(J74:J80) -> 2,500,000,000 | K73: 2,500,000,000 | R73: ='RENKAS 2024'!D33 -> 2,316,353,880 | S73: =R73/K73*100 -> 92.65 | T73: 2,436,574,136 | U73: =T73/K73*100 -> 97.46 | V73: =T73/R73*100 -> 105.19 | W73: =AVERAGE(W74:Y79) -> 100.00%
C74: 1 | D74: Rehabilitasi Jaringan Irigasi Se Kabupaten Wonosobo diatas 50 Ha | F74: APBD | G74: SDA | J74: 150,000,000 | K74: 200,000,000 | L74: CV. NARATAS KARYA MANDIRI | M74: 10 September 2024 | N74: 000.3/619.2/PPK-SDA/DPUPR/2024 | O74: 197,726,000 | P74: 10 September 2024 | Q74: 8 November 2024 | T74: 197,726,000 | U74: =T74/O74*100 -> 100.00 | W74: 100.00%
C75: 2 | D75: Rehabilitasi Jaringan Irigasi UPTD Wilayah 1 | F75: APBD | G75: SDA | J75: 115,000,000 | K75: 115,000,000 | L75: CV. WIDYA KARYA | M75: 3 September 2024 | N75: 000.3/595.2/PPK-SDA/DPUPR/2024 | O75: 112,890,000 | P75: 3 September 2024 | Q75: 1 November 2024 | T75: 112,890,000 | U75: 100.00 | W75: 100.00%
C76: 3 | D76: Rehabilitasi Jaringan Irigasi UPTD Wilayah 2 | F76: APBD | G76: SDA | J76: 120,000,000 | K76: 130,000,000 | L76: CV. BIMOLUKAR | M76: 4 September 2024 | N76: 000.3/596.2/PPK-SDA/DPUPR/2024 | O76: 127,444,000 | P76: 4 September 2024 | Q76: 19 Oktober 2024 | T76: 127,444,000 | U76: 100.00 | W76: 100.00%
C77: 4 | D77: Rehabilitasi Jaringan Irigasi UPTD Wilayah 3 | F77: APBD | G77: SDA | J77: 120,000,000 | K77: 130,000,000 | L77: CV. OL | M77: 9 September 2024 | N77: 000.3/614.2/PPK-SDA/DPUPR/2024 | O77: 127,601,000 | P77: 9 September 2024 | Q77: 7 November 2024 | T77: 127,601,000 | U77: 100.00 | W77: 100.00%
C78: 5 | D78: Rehabilitasi Jaringan Irigasi UPTD Wilayah 4 | F78: APBD | G78: SDA | J78: 115,000,000 | K78: 120,000,000 | L78: CV. BIMOLUKAR | M78: 9 September 2024 | N78: 000.3/615.2/PPK-SDA/DPUPR/2024 | O78: 118,201,000 | P78: 9 September 2024 | Q78: 7 November 2024 | T78: 118,201,000 | U78: 100.00 | W78: 100.00%
C79: 6 | D79: Rehabilitasi Jaringan Irigasi UPTD Wilayah 5 | F79: APBD | G79: SDA | J79: 120,000,000 | K79: 130,000,000 | L79: CV. SERAYU JAYA ABADI | M79: 17 Mei 2024 | N79: 000.3.2/0211.A/PPK-SDA/DPUPR/2024 | O79: 128,036,000 | P79: 17 Mei 2024 | Q79: 17 Juni 2024 | T79: 128,036,000 | U79: 100.00 | W79: 100.00%
C80: 7 | D80: BIAYA UMUM | F80: APBD | G80: SDA | J80: 1,760,000,000 | K80: 1,675,000,000
B81: d | D81: Operasi dan Pemeliharaan Bendung Irigasi | F81: APBD | G81: SDA | J81: =SUM(J82:J85) -> 650,000,000 | K81: 650,000,000 | R81: ='RENKAS 2024'!D34 -> 649,901,000 | S81: =R81/K81*100 -> 99.98 | T81: 639,580,590 | U81: =T81/K81*100 -> 98.40 | V81: =T81/R81*100 -> 98.41 | W81: =AVERAGE(W82:W85) -> 100.00%
C82: 1 | D82: Rehabilitasi Bendung dan Bangunan Pelengkap Se Kabupaten Wonosobo 1 | F82: APBD | G82: SDA | J82: 175,000,000 | K82: 200,000,000 | L82: CV. NARATAS KARYA MANDIRI | M82: 3 September 2024 | N82: 000.3/591.2/PPK-SDA/DPUPR/2024 | O82: 196,213,000 | P82: 3 September 2024 | Q82: 18 Oktober 2024 | T82: 196,213,000 | U82: =T82/O82*100 -> 100.00 | W82: 100.00%
C83: 2 | D83: Rehabilitasi Bendung dan Bangunan Pelengkap Se Kabupaten Wonosobo 2 | F83: APBD | G83: SDA | J83: 175,000,000 | K83: 200,000,000 | L83: CV. WIDYA KARYA | M83: 28 Agustus 2024 | N83: 000.3/573/PPK-SDA/DPUPR/2024 | O83: 196,305,000 | P83: 28 Agustus 2024 | Q83: 12 Oktober 2024 | T83: 196,305,000 | U83: 100.00 | W83: 100.00%
C84: 3 | D84: Rehabilitasi Bendung dan Bangunan Pelengkap Se Kabupaten Wonosobo 3 | F84: APBD | G84: SDA | J84: 175,000,000 | K84: 0 | Z84: Tidak Mendapatkan Alokasi di Perubahan
C85: 4 | D85: BIAYA UMUM | F85: APBD | G85: SDA | J85: 125,000,000 | K85: 250,000,000
B86: e | D86: Penyusunan Rencana Teknis dan Dokumen Lingkungan Hidup untuk Konstruksi Irigasi dan Rawa | F86: APBD | G86: SDA | J86: =SUM(J87:J90) -> 100,000,000 | K86: =SUM(K87:K91) -> 100,000,000 | R86: ='RENKAS 2024'!D35 -> 100,000,000 | S86: =R86/K86*100 -> 100.00 | T86: 99,033,000 | U86: =T86/K86*100 -> 99.03 | V86: =T86/R86*100 -> 99.03 | W86: =AVERAGE(W87:W91) -> 100.00%
C87: 1 | D87: Konsultan Perencana T-1 DAK | F87: APBD | G87: SDA | J87: 100,000,000 | K87: 0 | Z87: Tidak Mendapatkan Alokasi di Perubahan
D88: PERUBAHAN PENJABARAN
C89: 1 | D89: Konsultan Perencana Embung Mlandi | F89: APBD | G89: SDA | K89: 0 | Z89: Tidak Mendapatkan Alokasi di Perubahan
C90: 2 | D90: Konsultan Perencana T-1 DAK Bidang Irigasi | F90: APBD | G90: SDA | K90: 50,000,000 | L90: CV. SUMINAR JAYA | M90: 2 September 2024 | N90: 000.3/586.A/PPK-SDA/DPUPR/2024 | O90: 49,750,000 | P90: 2 September 2024 | Q90: 16 Oktober 2024 | T90: 49,750,000 | U90: =T90/O90*100 -> 100.00 | W90: 100.00%
C91: 3 | D91: Penyusunan Road Map Konservasi DAS Serayu | F91: APBD | G91: SDA | K91: 50,000,000 | L91: CV. SUMINAR JAYA | O91: 49,283,000 | T91: 49,283,000 | U91: 100.00 | W91: 100.00%
A92: C | D92: PROGRAM PENGELOLAAN DAN PENGEMBANGAN SISTEM PENYEDIAAN AIR MINUM | G92: CK | J92: =SUM(J93,J94) -> 15,583,264,000 | K92: 15,623,264,000 | R92: =SUM(R93,R94) -> 15,382,045,408 | S92: =R92/K92*100 -> 98.46 | T92: =SUM(T93,T94) -> 15,605,323,121 | U92: =T92/K92*100 -> 99.89 | V92: =T92/R92*100 -> 101.45 | W92: =AVERAGE(W93,W94) -> 99.70%
B93: a | D93: Pembinaan dan Pemberdayaan Masyarakat dalam Pengelolaan dan Pengembangan Sistem Penyediaan Air Minum (SPAM) | F93: APBD | G93: CK | J93: 45,000,000 | K93: 195,000,000 | R93: ='RENKAS 2024'!D38 -> 45,000,000 | S93: =R93/K93*100 -> 23.08 | T93: 193,833,920 | U93: =T93/K93*100 -> 99.40 | V93: 430.74 | W93: =T93/K93*100/100 -> 99.40%
B94: b | D94: Perluasan Sistem Penyediaan Air Minum (SPAM) Jaringan Perpipaan | F94: DAK | G94: CK | J94: =SUM(J95:J121) -> 15,538,264,000 | K94: =SUM(K95:K123) -> 15,428,264,000 | R94: ='RENKAS 2024'!D39 -> 15,337,045,408 | S94: =R94/K94*100 -> 99.41 | T94: 15,411,489,201 | U94: =T94/K94*100 -> 99.89 | V94: 100.49 | W94: =AVERAGE(W95:W121) -> 100.00%
C95: 1 | D95: Perluasan SPAM Jaringan Perpipaan Desa Mergolangu Kec. Kalibawang | F95: DAK | G95: CK | H95: Mergolangu | I95: Kalibawang | J95: 720,000,000 | K95: 720,000,000 | L95: TPS KKM TIRTA LANGGENG | M95: 01 APRIL 2024 | N95: 000.3.4/001/PKS/CK.01/2024 | O95: 720,000,000 | P95: 01 APRIL 2024 | Q95: 21 Desember 2024 | T95: =504000000+216000000 -> 720,000,000 | U95: =T95/O95*100 -> 100.00 | W95: 100.00% | X95: 240 | Y95: SR
C96: 2 | D96: Peningkatan SPAM Jaringan Perpipaan Desa Kalialang Kec. Kalibawang | F96: DAK | G96: CK | H96: Kalialang | I96: Kalibawang | J96: 645,000,000 | K96: 645,000,000 | L96: TPS KKM TIRTA AJI KENCANA | M96: 01 APRIL 2024 | N96: 000.3.4/002/PKS/CK.01/2024 | O96: 645,000,000 | P96: 01 APRIL 2024 | Q96: 21 Desember 2024 | T96: =106560300+54689700+290250000+193500000 -> 645,000,000 | U96: 100.00 | W96: 100.00% | X96: 215 | Y96: SR
C97: 3 | D97: Perluasan SPAM Jaringan Perpipaan Desa Sigedang Kec. Kejajar | F97: DAK | G97: CK | H97: Sigedang | I97: Kejajar | J97: 660,000,000 | K97: 660,000,000 | L97: TPS KKM SIDO MUKTI | M97: 01 APRIL 2024 | N97: 000.3.4/003/PKS/CK.01/2024 | O97: 660,000,000 | P97: 01 APRIL 2024 | Q97: 21 Desember 2024 | T97: =83193000+81807000+297000000+198000000 -> 660,000,000 | U97: 100.00 | W97: 100.00% | X97: 220 | Y97: SR
C98: 4 | D98: Perluasan SPAM Jaringan Perpipaan Desa Sikunang Kec. Kejajar | F98: DAK | G98: CK | H98: Sikunang | I98: Kejajar | J98: 600,000,000 | K98: 600,000,000 | L98: TPS KKM TIRTA BISMA | M98: 01 APRIL 2024 | N98: 000.3.4/004/PKS/CK.01/2024 | O98: 600,000,000 | P98: 01 APRIL 2024 | Q98: 21 Desember 2024 | T98: =74964000+75036000+270000000+180000000 -> 600,000,000 | U98: 100.00 | W98: 100.00% | X98: 200 | Y98: SR
C99: 5 | D99: Perluasan SPAM Jaringan Perpipaan Desa Candiyasan Kec. Kertek | F99: DAK | G99: CK | H99: Candiyasan | I99: Kertek | J99: 720,000,000 | K99: 720,000,000 | L99: TPS KKM TIRTA ADI | M99: 01 APRIL 2024 | N99: 000.3.4/005/PKS/CK.01/2024 | O99: 720,000,000 | P99: 01 APRIL 2024 | Q99: 21 Desember 2024 | T99: 720,000,000 | U99: 100.00 | W99: 100.00% | X99: 240 | Y99: SR | AA99: =25*K99/100 -> 180,000,000
C100: 6 | D100: Perluasan SPAM Jaringan Perpipaan Desa Karangluhur Kec. Kertek | F100: DAK | G100: CK | H100: Karangluhur | I100: Kertek | J100: 375,000,000 | K100: 375,000,000 | L100: TPS KKM CIPTA TIRTA | M100: 01 APRIL 2024 | N100: 000.3.4/006/PKS/CK.01/2024 | O100: 375,000,000 | P100: 01 APRIL 2024 | Q100: 21 Desember 2024 | T100: 375,000,000 | U100: 100.00 | W100: 100.00% | X100: 150 | Y100: SR
C101: 7 | D101: Perluasan SPAM Jaringan Perpipaan Desa Purwojati Kec. Kertek | F101: DAK | G101: CK | H101: Purwojati | I101: Kertek | J101: 675,000,000 | K101: 675,000,000 | L101: TPS KKM TOYA BERKAH | M101: 01 APRIL 2024 | N101: 000.3.4/007/PKS/CK.01/2024 | O101: 675,000,000 | P101: 01 APRIL 2024 | Q101: 21 Desember 2024 | T101: 675,000,000 | U101: 100.00 | W101: 100.00% | X101: 200 | Y101: SR
C102: 8 | D102: Perluasan SPAM Jaringan Perpipaan Desa Reco Kec. Kertek | F102: DAK | G102: CK | H102: Reco | I102: Kertek | J102: 720,000,000 | K102: 720,000,000 | L102: TPS KKM SIDO MARI | M102: 01 APRIL 2024 | N102: 000.3.4/008/PKS/CK.01/2024 | O102: 720,000,000 | P102: 01 APRIL 2024 | Q102: 21 Desember 2024 | T102: 720,000,000 | U102: 100.00 | W102: 100.00% | X102: 240 | Y102: SR
C103: 9 | D103: Perluasan SPAM Jaringan Perpipaan Desa Slukatan Kec. Mojotengah | F103: DAK | G103: CK | H103: Slukatan | I103: Mojotengah | J103: 630,000,000 | K103: 630,000,000 | L103: TPS KKM TIRTA BERKAH | M103: 01 APRIL 2024 | N103: 000.3.4/009/PKS/CK.01/2024 | O103: 630,000,000 | P103: 01 APRIL 2024 | Q103: 21 Desember 2024 | T103: =441000000+189000000 -> 630,000,000 | U103: 100.00 | W103: 100.00% | X103: 210 | Y103: SR
C104: 10 | D104: Perluasan SPAM Jaringan Perpipaan Desa Ngalian Kec. Wadaslintang | F104: DAK | G104: CK | H104: Ngalian | I104: Wadaslintang | J104: 525,000,000 | K104: 525,000,000 | L104: TPS KKM MAJU MERGO TIRTO | M104: 01 APRIL 2024 | N104: 000.3.4/010/PKS/CK.01/2024 | O104: 525,000,000 | P104: 01 APRIL 2024 | Q104: 21 Desember 2024 | T104: =367500000+157500000 -> 525,000,000 | U104: 100.00 | W104: 100.00% | X104: 175 | Y104: SR
C105: 11 | D105: Perluasan SPAM Jaringan Perpipaan Desa Watumalang Kec. Watumalang | F105: DAK | G105: CK | H105: Watumalang | I105: Watumalang | J105: 600,000,000 | K105: 600,000,000 | L105: TPS KKM WIGUNA TIRTA | M105: 01 APRIL 2024 | N105: 000.3.4/011/PKS/CK.01/2024 | O105: 600,000,000 | P105: 01 APRIL 2024 | Q105: 21 Desember 2024 | T105: =420000000+180000000 -> 600,000,000 | U105: 100.00 | W105: 100.00% | X105: 200 | Y105: SR
C106: 12 | D106: Peningkatan SPAM Jaringan Perpipaan Desa Dempel Kec. Kalibawang | F106: DAK | G106: CK | H106: Dempel | I106: Kalibawang | J106: 750,000,000 | K106: 750,000,000 | L106: TPS KKM TIRTO PERTAPAN | M106: 01 APRIL 2024 | N106: 000.3.4/012/PKS/CK.01/2024 | O106: 750,000,000 | P106: 01 APRIL 2024 | Q106: 21 Desember 2024 | T106: =128192700+59307300+337500000+225000000 -> 750,000,000 | U106: 100.00 | W106: 100.00% | X106: 150 | Y106: SR
C107: 13 | D107: Peningkatan SPAM Jaringan Perpipaan Desa Kalikarung Kec. Kalibawang | F107: DAK | G107: CK | H107: Kalikarung | I107: Kalibawang | J107: 750,000,000 | K107: 750,000,000 | L107: TPS KKM KALI BENING | M107: 01 APRIL 2024 | N107: 000.3.4/013/PKS/CK.01/2024 | O107: 750,000,000 | P107: 01 APRIL 2024 | Q107: 21 Desember 2024 | T107: 750,000,000 | U107: 100.00 | W107: 100.00% | X107: 150 | Y107: SR
C108: 14 | D108: Peningkatan SPAM Jaringan Perpipaan Desa Pengarengan Kec. Kalibawang | F108: DAK | G108: CK | H108: Pengarengan | I108: Kalibawang | J108: 800,000,000 | K108: 800,000,000 | L108: TPS KKM TIRTO ARUM | M108: 01 APRIL 2024 | N108: 000.3.4/014/PKS/CK.01/2024 | O108: 800,000,000 | P108: 01 APRIL 2024 | Q108: 21 Desember 2024 | T108: =560000000+240000000 -> 800,000,000 | U108: 100.00 | W108: 100.00% | X108: 160 | Y108: SR
C109: 15 | D109: Peningkatan SPAM Jaringan Perpipaan Desa Tempurejo Kec. Kalibawang | F109: DAK | G109: CK | H109: Tempurejo | I109: Kalibawang | J109: 800,000,000 | K109: 800,000,000 | L109: TPS KKM TIRTA LANCAR ABADI | M109: 01 APRIL 2024 | N109: 000.3.4/015/PKS/CK.01/2024 | O109: 800,000,000 | P109: 01 APRIL 2024 | Q109: 21 Desember 2024 | T109: 800,000,000 | U109: 100.00 | W109: 100.00% | X109: 160 | Y109: SR
C110: 16 | D110: Peningkatan SPAM Jaringan Perpipaan Desa Kwadungan Kec. Kalikajar | F110: DAK | G110: CK | H110: Kwadungan | I110: Kalikajar | J110: 625,000,000 | K110: 625,000,000 | L110: TPS KKM TIRTA RENGGANIS | M110: 01 APRIL 2024 | N110: 000.3.4/016/PKS/CK.01/2024 | O110: 625,000,000 | P110: 01 APRIL 2024 | Q110: 21 Desember 2024 | T110: 625,000,000 | U110: 100.00 | W110: 100.00% | X110: 125 | Y110: SR
C111: 17 | D111: Peningkatan SPAM Jaringan Perpipaan Desa Campursari Kec. Kejajar | F111: DAK | G111: CK | H111: Campursari | I111: Kejajar | J111: 825,000,000 | K111: 825,000,000 | L111: TPS KKM TIRTA LERENG BISMA | M111: 01 APRIL 2024 | N111: 000.3.4/017/PKS/CK.01/2024 | O111: 825,000,000 | P111: 01 APRIL 2024 | Q111: 21 Desember 2024 | T111: =371250000+103346550+102903450+247500000 -> 825,000,000 | U111: 100.00 | W111: 100.00% | X111: 165 | Y111: SR
C112: 18 | D112: Peningkatan SPAM Jaringan Perpipaan Desa Pulosaren Kec. Kepil | F112: DAK | G112: CK | H112: Pulosaren | I112: Kepil | J112: 355,000,000 | K112: 355,000,000 | L112: TPS KKM TIRTA ABADI | M112: 01 APRIL 2024 | N112: 000.3.4/018/PKS/CK.01/2024 | O112: 355,000,000 | P112: 01 APRIL 2024 | Q112: 21 Desember 2024 | T112: 355,000,000 | U112: 100.00 | W112: 100.00% | X112: 71 | Y112: SR
C113: 19 | D113: Peningkatan SPAM Jaringan Perpipaan Desa Kalidadap Kec. Wadaslintang | F113: DAK | G113: CK | H113: Kalidadap | I113: Wadaslintang | J113: 750,000,000 | K113: 750,000,000 | L113: TPS KKM TIRTA SANI | M113: 01 APRIL 2024 | N113: 000.3.4/019/PKS/CK.01/2024 | O113: 750,000,000 | P113: 01 APRIL 2024 | Q113: 21 Desember 2024 | T113: =525000000+225000000 -> 750,000,000 | U113: 100.00 | W113: 100.00% | X113: 150 | Y113: SR
C114: 20 | D114: Peningkatan SPAM Jaringan Perpipaan Desa Kaligowong Kec. Wadaslintang | F114: DAK | G114: CK | H114: Kaligowong | I114: Wadaslintang | J114: 800,000,000 | K114: 800,000,000 | L114: TPS KKM TOYA ABADI | M114: 01 APRIL 2024 | N114: 000.3.4/020/PKS/CK.01/2024 | O114: 800,000,000 | P114: 01 APRIL 2024 | Q114: 21 Desember 2024 | T114: 800,000,000 | U114: 100.00 | W114: 100.00% | X114: 160 | Y114: SR
C115: 21 | D115: Peningkatan SPAM Jaringan Perpipaan Desa Tirip Kec. Wadaslintang | F115: DAK | G115: CK | H115: Tirip | I115: Wadaslintang | J115: 800,000,000 | K115: 800,000,000 | L115: TPS KKM TIRTA GRANGSANG | M115: 01 APRIL 2024 | N115: 000.3.4/021/PKS/CK.01/2024 | O115: 800,000,000 | P115: 01 APRIL 2024 | Q115: 21 Desember 2024 | T115: =560000000+240000000 -> 800,000,000 | U115: 100.00 | W115: 100.00% | X115: 160 | Y115: SR
C116: 22 | D116: Pengadaan Sarana Air Bersih Dusun Gondang Desa Sendangsari | F116: APBD | G116: CK | H116: Sendangsari | I116: Garung | J116: 142,500,000 | K116: 0 | Z116: Digeser Ke Pemel Rutin Jalan
C117: 23 | D117: Pengadaan Air Bersih Dusun Tegal Sinongko Desa Ropoh Kecamatan Kepil | F117: APBD | G117: CK | H117: Ropoh | I117: Kepil | J117: 95,000,000 | K117: 0 | Z117: Digeser ke SKPD Lain
C118: 24 | D118: Biaya Penunjang DAK | F118: DAK | G118: CK | J118: 739,514,000 | K118: 739,514,000
C119: 25 | D119: BIAYA UMUM | F119: APBD | G119: CK | J119: 390,950,000 | K119: 363,750,000
D120: KONSULTAN
C121: 1 | D121: Perencanaan T-1 DAK Air Minum | F121: APBD | G121: CK | J121: 45,300,000 | K121: 0 | Z121: Tidak Mendapatkan Alokasi di Perubahan
D122: PERUBAHAN
C123: 1 | D123: Pengadaan Sarana Air Bersih Dusun Senden Desa Tlogodalem Kecamatan Kertek | E123: Pokir Baru | F123: APBD | G123: CK | K123: 200,000,000 | L123: CV. HASTAMA PARAMESTI | M123: 2024-11-22 | N123: 000.3.3/5205/CK/DPUPR/2024 | O123: 193,452,000 | P123: 2024-11-22 | Q123: 27 Desember 2024 | T123: 193,452,000 | U123: =T123/O123*100 -> 100.00 | W123: 100.00%
A125: D | D125: PROGRAM PENGELOLAAN DAN PENGEMBANGAN SISTEM AIR LIMBAH | G125: CK | J125: =SUM(J126,J129,J137,J138,J199) -> 19,036,497,000 | K125: 19,501,497,000 | R125: =SUM(R126,R129,R137,R138,R199) -> 18,804,359,736 | S125: =R125/K125*100 -> 96.43 | T125: =SUM(T126,T129,T137,T138,T199) -> 19,453,744,873 | U125: =T125/K125*100 -> 99.76 | V125: =T125/R125*100 -> 103.45 | W125: =AVERAGE(W126,W129,W137,W138,W199) -> 97.02%
B126: a | D126: Optimalisasi Instalasi Pengolahan Lumpur Tinja (IPLT) | F126: APBD | G126: CK | J126: =J127+J128 -> 100,000,000 | K126: 225,000,000 | R126: ='RENKAS 2024'!D42 -> 91,750,000 | S126: =R126/K126*100 -> 40.78 | T126: 205,856,000 | U126: =T126/K126*100 -> 91.49 | V126: 224.37 | W126: =AVERAGE(W127:W128) -> 100.00%
C127: 1 | D127: Peningkatan Prasarana IPLT Wonorejo | F127: APBD | G127: CK | J127: 0 | K127: 130,000,000 | L127: CV. MAHESWARA SEJAHTERA ABADI | M127: 2024-11-22 | N127: 000.3.3/5202/CK/DPUPR/2024 | O127: 128,691,000 | P127: 2024-11-22 | T127: 128,691,000 | U127: =T127/O127*100 -> 100.00 | W127: 100.00%
D128: BIAYA UMUM | F128: APBD | G128: CK | J128: 100,000,000 | K128: 95,000,000
B129: b | D129: Pembangunan Sistem Pengelolaan Air Limbah Domestik (SPALD) Terpusat Skala Permukiman | F129: DAK | G129: CK | J129: =SUM(J130:J133) -> 1,545,000,000 | K129: =SUM(K130:K136) -> 1,945,000,000 | R129: ='RENKAS 2024'!D43 -> 1,545,000,000 | S129: =R129/K129*100 -> 79.43 | T129: 1,937,970,775 | U129: =T129/K129*100 -> 99.64 | V129: =T129/R129*100 -> 125.44 | W129: =AVERAGE(W130:W132) -> 100.00%
C130: 1 | D130: Pembangunan IPAL Skala Permukiman Kel. Wringinanom Kec. Kertek | F130: DAK | G130: CK | H130: Wringinanom | I130: Kertek | J130: 500,000,000 | K130: 500,000,000 | L130: TPS KSM MUNCAR SARI | M130: 01 APRIL 2024 | N130: 000.3.4/038/PKS/CK.02/2024 | O130: 500,000,000 | P130: 01 APRIL 2024 | Q130: 21 Desember 2024 | T130: =72263900+52736100+225000000+150000000 -> 500,000,000 | U130: =T130/O130*100 -> 100.00 | W130: 100.00% | X130: 50 | Y130: SR
C131: 2 | D131: Pembangunan IPAL Skala Permukiman Desa Sudungdewo Kec. Kertek | F131: DAK | G131: CK | H131: Sudungdewo | I131: Kertek | J131: 500,000,000 | K131: 500,000,000 | L131: TPS KSM AMANAH | M131: 01 APRIL 2024 | N131: 000.3.4/039/PKS/CK.02/2024 | O131: 500,000,000 | P131: 01 APRIL 2024 | Q131: 21 Desember 2024 | T131: =350000000+150000000 -> 500,000,000 | U131: 100.00 | W131: 100.00% | X131: 50 | Y131: SR
C132: 3 | D132: Pembangunan IPAL Skala Permukiman Desa Karangluhur Kec. Kertek | F132: DAK | G132: CK | H132: Karangluhur | I132: Kertek | J132: 500,000,000 | K132: 500,000,000 | L132: TPS KSM MARONG SEHAT | M132: 01 APRIL 2024 | N132: 000.3.4/040/PKS/CK.02/2024 | O132: 500,000,000 | P132: 01 APRIL 2024 | Q132: 21 Desember 2024 | T132: =350000000+150000000 -> 500,000,000 | U132: 100.00 | W132: 100.00% | X132: 50 | Y132: SR
C133: 4 | D133: BIAYA UMUM DAK | F133: DAK | G133: CK | J133: 45,000,000 | K133: 45,000,000
D134: PERUBAHAN
C135: 1 | D135: Pembangunan Sarana Sanitasi Pondok Pesantren API Roudlotuth Tholibin Jawar Mojotengah Wonosobo | E135: Pokir Baru | F135: APBD | G135: CK | K135: 300,000,000 | L135: CV. Berkah Sari | M135: 2024-11-18 | N135: 000.3.3/5120/CK/2024 | O135: 292,700,000 | P135: 2024-11-18 | Q135: 27 Desember 2024 | T135: 292,700,000 | U135: =T135/O135*100 -> 100.00 | W135: 100.00%
C136: 2 | D136: Pembangunan IPAL Rutan (Rumah Tahanan) Wonosobo | F136: APBD | G136: CK | K136: 100,000,000 | L136: CV. MAHESWARA SEJAHTERA ABADI | M136: 2024-11-22 | N136: 000.3.3/5200/CK/DPUPR/2024 | O136: 97,317,000 | P136: 2024-11-22 | T136: 97,317,000 | U136: 100.00 | W136: 100.00%
B137: c | D137: Operasi dan Pemeliharaan Sistem Pengelolaan Air Limbah Domestik (SPALD) | F137: APBD | G137: CK | J137: 100,000,000 | K137: 100,000,000 | R137: ='RENKAS 2024'!D44 -> 100,000,000 | S137: =R137/K137*100 -> 100.00 | T137: 96,667,000 | U137: =T137/K137*100 -> 96.67 | V137: =T137/R137*100 -> 96.67 | W137: =T137/K137*100/100 -> 96.67%
B138: d | D138: Penyediaan Sub Sistem Pengolahan Air Limbah Domestik (SPALD) Setempat | G138: CK | J138: =SUM(J139:J198) -> 17,241,497,000 | K138: 17,181,497,000 | R138: ='RENKAS 2024'!D45 -> 17,017,609,736 | S138: =R138/K138*100 -> 99.05 | T138: 17,169,042,998 | U138: =T138/K138*100 -> 99.93 | V138: 100.89 | W138: =AVERAGE(W139:W198) -> 100.00%
C139: 1 | D139: Pembangunan Tangki Septik Individu Desa Gemblengan Kec. Garung | F139: HALS | G139: CK | H139: Gemblengan | I139: Garung | J139: 150,000,000 | K139: 150,000,000 | L139: TPS KSM JAMBAN LESTARI | M139: 01 APRIL 2024 | N139: 000.3.4/001/PKS/CK.03/2024 | O139: 150,000,000 | P139: 01 APRIL 2024 | Q139: 14 Desember 2024 | T139: 150,000,000 | U139: =T139/O139*100 -> 100.00 | W139: 100.00% | X139: 25 | Y139: SR
C140: 2 | D140: Pembangunan Tangki Septik Individu Desa Jengkol Kec. Garung | F140: HALS | G140: CK | H140: Jengkol | I140: Garung | J140: 150,000,000 | K140: 150,000,000 | L140: TPS KSM CIPTA KARYA SEHAT | M140: 01 APRIL 2024 | N140: 000.3.4/002/PKS/CK.03/2024 | O140: 150,000,000 | P140: 01 APRIL 2024 | Q140: 14 Desember 2024 | T140: 150,000,000 | U140: 100.00 | W140: 100.00% | X140: 25 | Y140: SR
C141: 3 | D141: Pembangunan Tangki Septik Individu Desa Maron Kec. Garung | F141: HALS | G141: CK | H141: Maron | I141: Garung | J141: 204,000,000 | K141: 204,000,000 | L141: TPS KSM BERKAH TIRTA | M141: 01 APRIL 2024 | N141: 000.3.4/003/PKS/CK.03/2024 | O141: 204,000,000 | P141: 01 APRIL 2024 | Q141: 14 Desember 2024 | T141: 204,000,000 | U141: 100.00 | W141: 100.00% | X141: 34 | Y141: SR
C142: 4 | D142: Pembangunan Tangki Septik Individu Desa Sitiharjo Kec. Garung | F142: HALS | G142: CK | H142: Sitiharjo | I142: Garung | J142: 180,000,000 | K142: 180,000,000 | L142: TPS KSM RAHARDJA | M142: 01 APRIL 2024 | N142: 000.3.4/004/PKS/CK.03/2024 | O142: 180,000,000 | P142: 01 APRIL 2024 | Q142: 14 Desember 2024 | T142: 180,000,000 | U142: 100.00 | W142: 100.00% | X142: 30 | Y142: SR
C143: 5 | D143: Pembangunan Tangki Septik Individu Desa Tegalsari Kec. Garung | F143: HALS | G143: CK | H143: Tegalsari | I143: Garung | J143: 180,000,000 | K143: 180,000,000 | L143: TPS KSM KANDANGAN SEHAT | M143: 01 APRIL 2024 | N143: 000.3.4/005/PKS/CK.03/2024 | O143: 180,000,000 | P143: 01 APRIL 2024 | Q143: 14 Desember 2024 | T143: 180,000,000 | U143: 100.00 | W143: 100.00% | X143: 30 | Y143: SR
C144: 6 | D144: Pembangunan Tangki Septik Individu Desa Kaliwuluh Kec. Kepil | F144: HALS | G144: CK | H144: Kaliwuluh | I144: Kepil | J144: 180,000,000 | K144: 180,000,000 | L144: TPS KSM RAHAYU | M144: 01 APRIL 2024 | N144: 000.3.4/006/PKS/CK.03/2024 | O144: 180,000,000 | P144: 01 APRIL 2024 | Q144: 14 Desember 2024 | T144: 180,000,000 | U144: 100.00 | W144: 100.00% | X144: 30 | Y144: SR
C145: 7 | D145: Pembangunan Tangki Septik Individu Desa Ngadikusuman Kec. Kertek | F145: HALS | G145: CK | H145: Ngadikusuman | I145: Kertek | J145: 180,000,000 | K145: 180,000,000 | L145: TPS KSM SANA KUSUMA | M145: 01 APRIL 2024 | N145: 000.3.4/007/PKS/CK.03/2024 | O145: 180,000,000 | P145: 01 APRIL 2024 | Q145: 14 Desember 2024 | T145: 180,000,000 | U145: =T145/O145*100 -> 100.00 | W145: 100.00% | X145: 30 | Y145: SR
C146: 8 | D146: Pembangunan Tangki Septik Individu Desa Tlogodalem Kec. Kertek | F146: HALS | G146: CK | H146: Tlogodalem | I146: Kertek | J146: 180,000,000 | K146: 180,000,000 | L146: TPS KSM NGUDI RESIK | M146: 01 APRIL 2024 | N146: 000.3.4/008/PKS/CK.03/2024 | O146: 180,000,000 | P146: 01 APRIL 2024 | Q146: 14 Desember 2024 | T146: 180,000,000 | U146: 100.00 | W146: 100.00% | X146: 30 | Y146: SR
C147: 9 | D147: Pembangunan Tangki Septik Individu Desa Blederan Kec. Mojotengah | F147: HALS | G147: CK | H147: Blederan | I147: Mojotengah | J147: 180,000,000 | K147: 180,000,000 | L147: TPS KSM SADAR LINGKUNGAN | M147: 01 APRIL 2024 | N147: 000.3.4/009/PKS/CK.03/2024 | O147: 180,000,000 | P147: 01 APRIL 2024 | Q147: 14 Desember 2024 | T147: 180,000,000 | U147: 100.00 | W147: 100.00% | X147: 30 | Y147: SR
C148: 10 | D148: Pembangunan Tangki Septik Individu Desa Bumirejo Kulon Kec. Mojotengah | F148: HALS | G148: CK | H148: Bumirejo | I148: Mojotengah | J148: 180,000,000 | K148: 180,000,000 | L148: TPS KSM BUMIREJO RESIK | M148: 01 APRIL 2024 | N148: 000.3.4/010/PKS/CK.03/2024 | O148: 180,000,000 | P148: 01 APRIL 2024 | Q148: 14 Desember 2024 | T148: 180,000,000 | U148: 100.00 | W148: 100.00% | X148: 30 | Y148: SR
C149: 11 | D149: Pembangunan Tangki Septik Individu Desa Larangan Kulon Kec. Mojotengah | F149: HALS | G149: CK | H149: Larangan | I149: Mojotengah | J149: 180,000,000 | K149: 180,000,000 | L149: TPS KSM BAGAS WARAS | M149: 01 APRIL 2024 | N149: 000.3.4/011/PKS/CK.03/2024 | O149: 180,000,000 | P149: 01 APRIL 2024 | Q149: 14 Desember 2024 | T149: 180,000,000 | U149: 100.00 | W149: 100.00% | X149: 30 | Y149: SR
C150: 12 | D150: Pembangunan Tangki Septik Individu Desa Mojosari Kec. Mojotengah | F150: HALS | G150: CK | H150: Mojosari | I150: Mojotengah | J150: 180,000,000 | K150: 180,000,000 | L150: TPS KSM SEHAT SEJAHTERA | M150: 01 APRIL 2024 | N150: 000.3.4/012/PKS/CK.03/2024 | O150: 180,000,000 | P150: 01 APRIL 2024 | Q150: 14 Desember 2024 | T150: 180,000,000 | U150: 100.00 | W150: 100.00% | X150: 30 | Y150: SR
C151: 13 | D151: Pembangunan Tangki Septik Individu Desa Pungangan Kec. Mojotengah | F151: HALS | G151: CK | H151: Pungangan | I151: Mojotengah | J151: 150,000,000 | K151: 150,000,000 | L151: TPS KSM SEHAT BERSATU | M151: 01 APRIL 2024 | N151: 000.3.4/013/PKS/CK.03/2024 | O151: 150,000,000 | P151: 01 APRIL 2024 | Q151: 14 Desember 2024 | T151: 150,000,000 | U151: 100.00 | W151: 100.00% | X151: 25 | Y151: SR
C152: 14 | D152: Pembangunan Tangki Septik Individu Desa Candi Kec. Selomerto | F152: HALS | G152: CK | H152: Candi | I152: Selomerto | J152: 150,000,000 | K152: 150,000,000 | L152: TPS KSM CANDI SEJAHTERA | M152: 01 APRIL 2024 | N152: 000.3.4/014/PKS/CK.03/2024 | O152: 150,000,000 | P152: 01 APRIL 2024 | Q152: 14 Desember 2024 | T152: 150,000,000 | U152: 100.00 | W152: 100.00% | X152: 25 | Y152: SR
C153: 15 | D153: Pembangunan Tangki Septik Individu Desa Plobangan Kec. Selomerto | F153: HALS | G153: CK | H153: Plobangan | I153: Selomerto | J153: 150,000,000 | K153: 150,000,000 | L153: TPS KSM PLOJASE | M153: 01 APRIL 2024 | N153: 000.3.4/015/PKS/CK.03/2024 | O153: 150,000,000 | P153: 01 APRIL 2024 | Q153: 14 Desember 2024 | T153: 150,000,000 | U153: 100.00 | W153: 100.00% | X153: 25 | Y153: SR
C154: 16 | D154: Pembangunan Tangki Septik Individu Desa Semayu Kec. Selomerto | F154: HALS | G154: CK | H154: Semayu | I154: Selomerto | J154: 150,000,000 | K154: 150,000,000 | L154: TPS KSM SEMAYU SEHAT | M154: 01 APRIL 2024 | N154: 000.3.4/016/PKS/CK.03/2024 | O154: 150,000,000 | P154: 01 APRIL 2024 | Q154: 14 Desember 2024 | T154: 150,000,000 | U154: 100.00 | W154: 100.00% | X154: 25 | Y154: SR
C155: 17 | D155: Pembangunan Tangki Septik Individu Desa Sumberwulan Kec. Selomerto | F155: HALS | G155: CK | H155: Sumberwulan | I155: Selomerto | J155: 150,000,000 | K155: 150,000,000 | L155: TPS KSM SUMBER SEHAT | M155: 01 APRIL 2024 | N155: 000.3.4/017/PKS/CK.03/2024 | O155: 150,000,000 | P155: 01 APRIL 2024 | Q155: 14 Desember 2024 | T155: 150,000,000 | U155: 100.00 | W155: 100.00% | X155: 25 | Y155: SR
C156: 18 | D156: Pembangunan Tangki Septik Individu Desa Kalibening Kec. Sukoharjo | F156: HALS | G156: CK | H156: Kalibening | I156: Sukoharjo | J156: 150,000,000 | K156: 150,000,000 | L156: TPS KSM LANCAR LANGGENG | M156: 01 APRIL 2024 | N156: 000.3.4/018/PKS/CK.03/2024 | O156: 150,000,000 | P156: 01 APRIL 2024 | Q156: 14 Desember 2024 | T156: 150,000,000 | U156: 100.00 | W156: 100.00% | X156: 25 | Y156: SR
C157: 19 | D157: Pembangunan Tangki Septik Individu Desa Binangun Kec. Watumalang | F157: HALS | G157: CK | H157: Binangun | I157: Watumalang | J157: 150,000,000 | K157: 150,000,000 | L157: TPS KSM SETIA JAYA | M157: 01 APRIL 2024 | N157: 000.3.4/019/PKS/CK.03/2024 | O157: 150,000,000 | P157: 01 APRIL 2024 | Q157: 14 Desember 2024 | T157: 150,000,000 | U157: 100.00 | W157: 100.00% | X157: 25 | Y157: SR
C158: 20 | D158: Pembangunan Tangki Septik Skala Individual Desa Dempel Kec. Kalibawang | F158: DAK | G158: CK | H158: Dempel | I158: Kalibawang | J158: 420,000,000 | K158: 420,000,000 | L158: TPS KSM SUMBER WARAS | M158: 01 APRIL 2024 | N158: 000.3.4/001/PKS/CK.02/2024 | O158: 420,000,000 | P158: 01 APRIL 2024 | Q158: 14 Desember 2024 | T158: =64815225+40184775+189000000+126000000 -> 420,000,000 | U158: 100.00 | W158: 100.00% | X158: 60 | Y158: SR
C159: 21 | D159: Pembangunan Tangki Septik Skala Individual Desa Kalikarung Kec. Kalibawang | F159: DAK | G159: CK | H159: Kalikarung | I159: Kalibawang | J159: 420,000,000 | K159: 420,000,000 | L159: TPS KSM NGABEAN SEHAT | M159: 01 APRIL 2024 | N159: 000.3.4/002/PKS/CK.02/2024 | O159: 420,000,000 | P159: 01 APRIL 2024 | Q159: 14 Desember 2024 | T159: =64815225+40184775+189000000+126000000 -> 420,000,000 | U159: 100.00 | W159: 100.00% | X159: 60 | Y159: SR | AA159: =25*K159/100 -> 105,000,000
C160: 22 | D160: Pembangunan Tangki Septik Skala Individual Desa Mergolangu Kec. Kalibawang | F160: DAK | G160: CK | H160: Mergolangu | I160: Kalibawang | J160: 420,000,000 | K160: 420,000,000 | L160: TPS KSM MARGO UTAMI | M160: 01 APRIL 2024 | N160: 000.3.4/003/PKS/CK.02/2024 | O160: 420,000,000 | P160: 01 APRIL 2024 | Q160: 14 Desember 2024 | T160: =63896700+41103300+189000000+126000000 -> 420,000,000 | U160: 100.00 | W160: 100.00% | X160: 60 | Y160: SR | AA160: 105,000,000
C161: 23 | D161: Pembangunan Tangki Septik Skala Individual Desa Butuh Kec. Kalikajar | F161: DAK | G161: CK | H161: Butuh | I161: Kalikajar | J161: 350,000,000 | K161: 350,000,000 | L161: TPS KSM SATYA BHAKTI | M161: 01 APRIL 2024 | N161: 000.3.4/004/PKS/CK.02/2024 | O161: 350,000,000 | P161: 01 APRIL 2024 | Q161: 14 Desember 2024 | T161: =61914500+25585500+157500000+105000000 -> 350,000,000 | U161: 100.00 | W161: 100.00% | X161: 50 | Y161: SR | AA161: 87,500,000
C162: 24 | D162: Pembangunan Tangki Septik Skala Individual Desa Kalikuning Kec. Kalikajar | F162: DAK | G162: CK | H162: Kalikuning | I162: Kalikajar | J162: 350,000,000 | K162: 350,000,000 | L162: TPS KSM BUMI SAKTI | M162: 01 APRIL 2024 | N162: 000.3.4/005/PKS/CK.02/2024 | O162: 350,000,000 | P162: 01 APRIL 2024 | Q162: 14 Desember 2024 | T162: 350,000,000 | U162: 100.00 | W162: 100.00% | X162: 50 | Y162: SR | AA162: 87,500,000
C163: 25 | D163: Pembangunan Tangki Septik Skala Individual Desa Kembaran Kec. Kalikajar | F163: DAK | G163: CK | H163: Kembaran | I163: Kalikajar | J163: 420,000,000 | K163: 420,000,000 | L163: TPS KSM MANDIRI | M163: 01 APRIL 2024 | N163: 000.3.4/006/PKS/CK.02/2024 | O163: 420,000,000 | P163: 01 APRIL 2024 | Q163: 14 Desember 2024 | T163: 420,000,000 | U163: 100.00 | W163: 100.00% | X163: 50 | Y163: SR | AA163: 105,000,000
C164: 26 | D164: Pembangunan Tangki Septik Skala Individual Desa Campursari Kec. Kejajar | F164: DAK | G164: CK | H164: Campursari | I164: Kejajar | J164: 350,000,000 | K164: 350,000,000 | L164: TPS KSM PULOSARI SEHAT | M164: 01 APRIL 2024 | N164: 000.3.4/007/PKS/CK.02/2024 | O164: 350,000,000 | P164: 01 APRIL 2024 | Q164: 14 Desember 2024 | T164: 350,000,000 | U164: 100.00 | W164: 100.00% | X164: 50 | Y164: SR | AA164: 87,500,000
C165: 27 | D165: Pembangunan Tangki Septik Skala Individual Desa Dieng Kec. Kejajar | F165: DAK | G165: CK | H165: Dieng | I165: Kejajar | J165: 420,000,000 | K165: 420,000,000 | L165: TPS KSM RAKAI SANJAYA | M165: 01 APRIL 2024 | N165: 000.3.4/008/PKS/CK.02/2024 | O165: 420,000,000 | P165: 01 APRIL 2024 | Q165: 14 Desember 2024 | T165: 420,000,000 | U165: 100.00 | W165: 100.00% | X165: 50 | Y165: SR | AA165: 105,000,000
C166: 28 | D166: Pembangunan Tangki Septik Skala Individual Desa Jojogan Kec. Kejajar | F166: DAK | G166: CK | H166: Jojogan | I166: Kejajar | J166: 350,000,000 | K166: 350,000,000 | L166: TPS KSM TIRTA INGGIL | M166: 01 APRIL 2024 | N166: 000.3.4/009/PKS/CK.02/2024 | O166: 350,000,000 | P166: 01 APRIL 2024 | Q166: 14 Desember 2024 | T166: 350,000,000 | U166: 100.00 | W166: 100.00% | X166: 50 | Y166: SR | AA166: 87,500,000
C167: 29 | D167: Pembangunan Tangki Septik Skala Individual Desa Ropoh Kec. Kepil | F167: DAK | G167: CK | H167: Ropoh | I167: Kepil | J167: 350,000,000 | K167: 350,000,000 | L167: TPS KSM POTRO MULYO | M167: 01 APRIL 2024 | N167: 000.3.4/010/PKS/CK.02/2024 | O167: 350,000,000 | P167: 01 APRIL 2024 | Q167: 14 Desember 2024 | T167: 350,000,000 | U167: 100.00 | W167: 100.00% | X167: 50 | Y167: SR | AA167: 87,500,000
C168: 30 | D168: Pembangunan Tangki Septik Skala Individual Desa Bejiarum Kec. Kertek | F168: DAK | G168: CK | H168: Bejiarum | I168: Kertek | J168: 420,000,000 | K168: 420,000,000 | L168: TPS KSM BEJIARUM SEHAT | M168: 01 APRIL 2024 | N168: 000.3.4/011/PKS/CK.02/2024 | O168: 420,000,000 | P168: 01 APRIL 2024 | Q168: 14 Desember 2024 | T168: 420,000,000 | U168: 100.00 | W168: 100.00% | X168: 50 | Y168: SR | AA168: 105,000,000
C169: 31 | D169: Pembangunan Tangki Septik Skala Individual Desa Candiyasan Kec. Kertek | F169: DAK | G169: CK | H169: Candiyasan | I169: Kertek | J169: 350,000,000 | K169: 350,000,000 | L169: TPS KSM CANDIYASAN SEHAT | M169: 01 APRIL 2024 | N169: 000.3.4/012/PKS/CK.02/2024 | O169: 350,000,000 | P169: 01 APRIL 2024 | Q169: 14 Desember 2024 | T169: 350,000,000 | U169: 100.00 | W169: 100.00% | X169: 50 | Y169: SR | AA169: 87,500,000
C170: 32 | D170: Pembangunan Tangki Septik Skala Individual Desa Kapencar Kec. Kertek | F170: DAK | G170: CK | H170: Kapencar | I170: Kertek | J170: 350,000,000 | K170: 350,000,000 | L170: TPS KSM BINA SEHAT | M170: 01 APRIL 2024 | N170: 000.3.4/013/PKS/CK.02/2024 | O170: 350,000,000 | P170: 01 APRIL 2024 | Q170: 14 Desember 2024 | T170: 350,000,000 | U170: 100.00 | W170: 100.00% | X170: 50 | Y170: SR | AA170: 87,500,000
C171: 33 | D171: Pembangunan Tangki Septik Skala Individual Desa Purwojati Kec. Kertek | F171: DAK | G171: CK | H171: Purwojati | I171: Kertek | J171: 350,000,000 | K171: 350,000,000 | L171: TPS KSM JATI SEHAT | M171: 01 APRIL 2024 | N171: 000.3.4/014/PKS/CK.02/2024 | O171: 350,000,000 | P171: 01 APRIL 2024 | Q171: 14 Desember 2024 | T171: 350,000,000 | U171: 100.00 | W171: 100.00% | X171: 50 | Y171: SR | AA171: 87,500,000
C172: 34 | D172: Pembangunan Tangki Septik Skala Individual Desa Sindupaten Kec. Kertek | F172: DAK | G172: CK | H172: Sindupaten | I172: Kertek | J172: 420,000,000 | K172: 420,000,000 | L172: TPS KSM BERGAS WARAS | M172: 01 APRIL 2024 | N172: 000.3.4/015/PKS/CK.02/2024 | O172: 420,000,000 | P172: 01 APRIL 2024 | Q172: 14 Desember 2024 | T172: 420,000,000 | U172: 100.00 | W172: 100.00% | X172: 50 | Y172: SR | AA172: 105,000,000
C173: 35 | D173: Pembangunan Tangki Septik Skala Individual Desa Adiwarno Kec. Selomerto | F173: DAK | G173: CK | H173: Adiwarno | I173: Selomerto | J173: 420,000,000 | K173: 420,000,000 | L173: TPS KSM ADIJAYA | M173: 01 APRIL 2024 | N173: 000.3.4/016/PKS/CK.02/2024 | O173: 420,000,000 | P173: 01 APRIL 2024 | Q173: 14 Desember 2024 | T173: 420,000,000 | U173: 100.00 | W173: 100.00% | X173: 50 | Y173: SR | AA173: 105,000,000
C174: 36 | D174: Pembangunan Tangki Septik Skala Individual Kel.Bomerto Kec. Wonosobo | F174: DAK | G174: CK | H174: Adiwarno | I174: Selomerto | J174: 420,000,000 | K174: 420,000,000 | L174: TPS KSM BOMERTO SEHAT | M174: 01 APRIL 2024 | N174: 000.3.4/017/PKS/CK.02/2024 | O174: 420,000,000 | P174: 01 APRIL 2024 | Q174: 14 Desember 2024 | T174: 420,000,000 | U174: 100.00 | W174: 100.00%
C175: 37 | D175: Pembangunan Tangki Septik Skala Individual Kel. Jaraksari Kec. Wonosobo | F175: DAK | G175: CK | H175: Jaraksari | I175: Wonosobo | J175: 350,000,000 | K175: 350,000,000 | L175: TPS KSM JARAKSARI UTAMA | M175: 01 APRIL 2024 | N175: 000.3.4/018/PKS/CK.02/2024 | O175: 350,000,000 | P175: 01 APRIL 2024 | Q175: 14 Desember 2024 | T175: 350,000,000 | U175: 100.00 | W175: 100.00% | X175: 50 | Y175: SR | AA175: =25*K175/100 -> 87,500,000
C176: 38 | D176: Pembangunan Tangki Septik Skala Individual Desa Sariyoso Kec. Wonosobo | F176: DAK | G176: CK | H176: Sariyoso | I176: Wonosobo | J176: 420,000,000 | K176: 420,000,000 | L176: TPS KSM BERSIH WANGI | M176: 01 APRIL 2024 | N176: 000.3.4/019/PKS/CK.02/2024 | O176: 420,000,000 | P176: 01 APRIL 2024 | Q176: 14 Desember 2024 | T176: 420,000,000 | U176: 100.00 | W176: 100.00% | X176: 50 | Y176: SR | AA176: =25*K176/100 -> 105,000,000
C177: 39 | D177: Pembangunan Tangki Septik Skala Komunal Desa Karangsambung Kec. Kalibawang | F177: DAK | G177: CK | H177: Karangsambung | I177: Kalibawang | J177: 300,000,000 | K177: 300,000,000 | L177: TPS KSM MANDIRI LESTARI | M177: 01 APRIL 2024 | N177: 000.3.4/020/PKS/CK.02/2024 | O177: 300,000,000 | P177: 01 APRIL 2024 | Q177: 14 Desember 2024 | T177: 300,000,000 | U177: 100.00 | W177: 100.00% | X177: 30 | Y177: SR
C178: 40 | D178: Pembangunan Tangki Septik Skala Komunal Desa Kwadungan Kec. Kalikajar | F178: DAK | G178: CK | H178: Kwadungan | I178: Kalikajar | J178: 300,000,000 | K178: 300,000,000 | L178: TPS KSM KWADUNGAN MANUNGGAL LESTARI | M178: 01 APRIL 2024 | N178: 000.3.4/021/PKS/CK.02/2024 | O178: 300,000,000 | P178: 01 APRIL 2024 | Q178: 14 Desember 2024 | T178: 300,000,000 | U178: 100.00 | W178: 100.00% | X178: 30 | Y178: SR
C179: 41 | D179: Pembangunan Tangki Septik Skala Komunal Desa Lamuk Kec. Kalikajar | F179: DAK | G179: CK | H179: Kwadungan | I179: Kalikajar | J179: 300,000,000 | K179: 300,000,000 | L179: TPS KSM LAMUK SEHAT | M179: 01 APRIL 2024 | N179: 000.3.4/22/PKS/CK.02/2024 | O179: 300,000,000 | P179: 01 APRIL 2024 | Q179: 14 Desember 2024 | T179: 300,000,000 | U179: 100.00 | W179: 100.00%
C180: 42 | D180: Pembangunan Tangki Septik Skala Komunal Desa Buntu Kec. Kejajar | F180: DAK | G180: CK | H180: Buntu | I180: Kejajar | J180: 300,000,000 | K180: 300,000,000 | L180: TPS KSM MEKAR SEHAT BERSAMA | M180: 01 APRIL 2024 | N180: 000.3.4/023/PKS/CK.02/2024 | O180: 300,000,000 | P180: 01 APRIL 2024 | Q180: 14 Desember 2024 | T180: 300,000,000 | U180: 100.00 | W180: 100.00% | X180: 30 | Y180: SR
C181: 43 | D181: Pembangunan Tangki Septik Skala Komunal Desa Parikesit Kec. Kejajar | F181: DAK | G181: CK | H181: Parikesit | I181: Kejajar | J181: 300,000,000 | K181: 300,000,000 | L181: TPS KSM BALADEWA | M181: 01 APRIL 2024 | N181: 000.3.4/024/PKS/CK.02/2024 | O181: 300,000,000 | P181: 01 APRIL 2024 | Q181: 14 Desember 2024 | T181: 300,000,000 | U181: 100.00 | W181: 100.00% | X181: 30 | Y181: SR
C182: 44 | D182: Pembangunan Tangki Septik Skala Komunal Desa Tambi Kec. Kejajar | F182: DAK | G182: CK | H182: Tambi | I182: Kejajar | J182: 300,000,000 | K182: 300,000,000 | L182: TPS KSM TIRTA SARI | M182: 01 APRIL 2024 | N182: 000.3.4/025/PKS/CK.02/2024 | O182: 300,000,000 | P182: 01 APRIL 2024 | Q182: 14 Desember 2024 | T182: 300,000,000 | U182: 100.00 | W182: 100.00% | X182: 30 | Y182: SR
C183: 45 | D183: Pembangunan Tangki Septik Skala Komunal Desa Serang Kec. Kejajar | F183: DAK | G183: CK | H183: Serang | I183: Kejajar | J183: 300,000,000 | K183: 300,000,000 | L183: TPS KSM SUMBER SIRANCAH | M183: 01 APRIL 2024 | N183: 000.3.4/026/PKS/CK.02/2024 | O183: 300,000,000 | P183: 01 APRIL 2024 | Q183: 14 Desember 2024 | T183: 300,000,000 | U183: 100.00 | W183: 100.00% | X183: 30 | Y183: SR
C184: 46 | D184: Pembangunan Tangki Septik Skala Komunal Desa Sigedang Kec. Kejajar | F184: DAK | G184: CK | H184: Sigedang | I184: Kejajar | J184: 300,000,000 | K184: 300,000,000 | L184: TPS KSM SIGEDANG MAJU | M184: 01 APRIL 2024 | N184: 000.3.4/027/PKS/CK.02/2024 | O184: 300,000,000 | P184: 01 APRIL 2024 | Q184: 14 Desember 2024 | T184: 300,000,000 | U184: 100.00 | W184: 100.00% | X184: 30 | Y184: SR
C185: 47 | D185: Pembangunan Tangki Septik Skala Komunal Desa Sikunang Kec. Kejajar | F185: DAK | G185: CK | H185: Sikunang | I185: Kejajar | J185: 300,000,000 | K185: 300,000,000 | L185: TPS KSM NGANDAM SEHAT | M185: 01 APRIL 2024 | N185: 000.3.4/028/PKS/CK.02/2024 | O185: 300,000,000 | P185: 01 APRIL 2024 | Q185: 14 Desember 2024 | T185: 300,000,000 | U185: 100.00 | W185: 100.00% | X185: 30 | Y185: SR
C186: 48 | D186: Pembangunan Tangki Septik Skala Komunal Desa Surengede Kec. Kejajar | F186: DAK | G186: CK | H186: Surengede | I186: Kejajar | J186: 300,000,000 | K186: 300,000,000 | L186: TPS KSM TIRTA ARDHI | M186: 01 APRIL 2024 | N186: 000.3.4/029/PKS/CK.02/2024 | O186: 300,000,000 | P186: 01 APRIL 2024 | Q186: 14 Desember 2024 | T186: 300,000,000 | U186: 100.00 | W186: 100.00% | X186: 30 | Y186: SR
C187: 49 | D187: Pembangunan Tangki Septik Skala Komunal Desa Tieng Kec. Kejajar | F187: DAK | G187: CK | H187: Tieng | I187: Kejajar | J187: 300,000,000 | K187: 300,000,000 | L187: TPS KSM BERDAYA MANUNGGAL | M187: 01 APRIL 2024 | N187: 000.3.4/030/PKS/CK.02/2024 | O187: 300,000,000 | P187: 01 APRIL 2024 | Q187: 14 Desember 2024 | T187: 300,000,000 | U187: 100.00 | W187: 100.00% | X187: 30 | Y187: SR
C188: 50 | D188: Pembangunan Tangki Septik Skala Komunal Desa Banjar Kec. Kertek | F188: DAK | G188: CK | H188: Banjar | I188: Kertek | J188: 300,000,000 | K188: 300,000,000 | L188: TPS KSM SUMBER WARAS | M188: 01 APRIL 2024 | N188: 000.3.4/031/PKS/CK.02/2024 | O188: 300,000,000 | P188: 01 APRIL 2024 | Q188: 14 Desember 2024 | T188: 300,000,000 | U188: 100.00 | W188: 100.00% | X188: 30 | Y188: SR
C189: 51 | D189: Pembangunan Tangki Septik Skala Komunal Desa Damarkasiyan Kec. Kertek | F189: DAK | G189: CK | H189: Damarkasiyan | I189: Kertek | J189: 300,000,000 | K189: 300,000,000 | L189: TPS KSM KALI SENGI ASRI | M189: 01 APRIL 2024 | N189: 000.3.4/032/PKS/CK.02/2024 | O189: 300,000,000 | P189: 01 APRIL 2024 | Q189: 14 Desember 2024 | T189: 300,000,000 | U189: 100.00 | W189: 100.00% | X189: 30 | Y189: SR
C190: 52 | D190: Pembangunan Tangki Septik Skala Komunal Desa Reco Kec. Kertek | F190: DAK | G190: CK | H190: Reco | I190: Kertek | J190: 300,000,000 | K190: 300,000,000 | L190: TPS KSM SIDO ASRI | M190: 01 APRIL 2024 | N190: 000.3.4/033/PKS/CK.02/2024 | O190: 300,000,000 | P190: 01 APRIL 2024 | Q190: 14 Desember 2024 | T190: 300,000,000 | U190: 100.00 | W190: 100.00% | X190: 30 | Y190: SR
C191: 53 | D191: Pembangunan Tangki Septik Skala Komunal Desa Slukatan Kec. Mojotengah | F191: DAK | G191: CK | H191: Slukatan | I191: Mojotengah | J191: 300,000,000 | K191: 300,000,000 | L191: TPS KSM LANCAR BERKAH | M191: 01 APRIL 2024 | N191: 000.3.4/034/PKS/CK.02/2024 | O191: 300,000,000 | P191: 01 APRIL 2024 | Q191: 14 Desember 2024 | T191: 300,000,000 | U191: 100.00 | W191: 100.00% | X191: 30 | Y191: SR
C192: 54 | D192: Pembangunan Tangki Septik Skala Komunal Desa Banyumudal Kec. Sapuran | F192: DAK | G192: CK | H192: Banyumudal | I192: Sapuran | J192: 300,000,000 | K192: 300,000,000 | L192: TPS KSM SUMBING LANCAR | M192: 01 APRIL 2024 | N192: 000.3.4/035/PKS/CK.02/2024 | O192: 300,000,000 | P192: 01 APRIL 2024 | Q192: 14 Desember 2024 | T192: 300,000,000 | U192: 100.00 | W192: 100.00% | X192: 30 | Y192: SR
C193: 55 | D193: Pembangunan Tangki Septik Skala Komunal Desa Surojoyo Kec. Sapuran | F193: DAK | G193: CK | H193: Surojoyo | I193: Sapuran | J193: 300,000,000 | K193: 300,000,000 | L193: TPS KSM GEMULUNG ASRI | M193: 01 APRIL 2024 | N193: 000.3.4/036/PKS/CK.02/2024 | O193: 300,000,000 | P193: 01 APRIL 2024 | Q193: 14 Desember 2024 | T193: 300,000,000 | U193: 100.00 | W193: 100.00% | X193: 30 | Y193: SR
C194: 56 | D194: Pembangunan Tangki Septik Skala Komunal Desa Tempursari Kec. Sapuran | F194: DAK | G194: CK | H194: Tempursari | I194: Sapuran | J194: 300,000,000 | K194: 300,000,000 | L194: TPS KSM SIDHO BERSIH | M194: 01 APRIL 2024 | N194: 000.3.4/037/PKS/CK.02/2024 | O194: 300,000,000 | P194: 01 APRIL 2024 | Q194: 14 Desember 2024 | T194: =75000000+135000000+90000000 -> 300,000,000 | U194: 100.00 | W194: 100.00% | X194: 30 | Y194: SR
C195: 57 | D195: BIAYA UMUM | F195: APBD | G195: CK | J195: 543,000,000 | K195: 483,000,000
C196: 58 | D196: Penunjang DAK | F196: DAK | G196: CK | J196: 744,497,000 | K196: 744,497,000
D197: KONSULTAN
C198: 1 | D198: Perencanaan T-1 DAK Sanitasi | F198: APBD | G198: CK | J198: 30,000,000 | K198: 30,000,000 | U198: =T198/K198*100 -> 0 | Z198: Tidak Mendapatkan Alokasi di Perubahan
B199: e | D199: Pembinaan dan Pemberdayaan Masyarakat dalam Pengembangan Sistem Pengelolaan Air Limbah Domestik (SPALD) | F199: APBD | G199: CK | J199: 50,000,000 | K199: 50,000,000 | R199: ='RENKAS 2024'!D46 -> 50,000,000 | S199: =R199/K199*100 -> 100.00 | T199: 44,208,100 | U199: =T199/K199*100 -> 88.42 | V199: =T199/R199*100 -> 88.42 | W199: =T199/K199*100/100 -> 88.42%
A201: E | D201: PROGRAM PENGELOLAAN DAN PENGEMBANGAN SISTEM DRAINASE | F201: APBD | G201: SDA | J201: =J202 -> 350,000,000 | K201: 350,000,000 | R201: =R202 -> 306,946,700 | S201: =R201/K201*100 -> 87.70 | T201: =T202 -> 328,636,534 | U201: =T201/K201*100 -> 93.90 | V201: =T201/R201*100 -> 107.07 | W201: =W202 -> 93.90%
B202: a | D202: Operasi dan Pemeliharaan Sistem Drainase Perkotaan | F202: APBD | G202: SDA | J202: 350,000,000 | K202: 350,000,000 | R202: ='RENKAS 2024'!D49 -> 306,946,700 | S202: =R202/K202*100 -> 87.70 | T202: 328,636,534 | U202: =T202/K202*100 -> 93.90 | V202: 107.07 | W202: =T202/K202*100/100 -> 93.90%
A204: F | D204: PROGRAM PENATAAN BANGUNAN GEDUNG | F204: APBD | G204: BP | J204: =SUM(J205,J206) -> 813,120,000 | K204: 763,850,000 | R204: =SUM(R205,R206) -> 707,125,760 | S204: =R204/K204*100 -> 92.57 | T204: =SUM(T205,T206) -> 754,228,279 | U204: =T204/K204*100 -> 98.74 | V204: =T204/R204*100 -> 106.66 | W204: =T204/K204*100/100 -> 98.74%
B205: a | D205: Penyusunan Kebijakan terkait Penyelenggaraan Bangunan Gedung | F205: APBD | G205: BP | J205: 79,800,000 | K205: 79,800,000 | R205: ='RENKAS 2024'!D52 -> 79,800,000 | S205: =R205/K205*100 -> 100.00 | T205: 79,164,100 | U205: =T205/K205*100 -> 99.20 | V205: 99.20 | W205: =T205/K205*100/100 -> 99.20%
... 239 more rows

Sheet desk tidak hadir
A1: REKAPITULASI PERKEMBANGAN KEGIATAN BELANJA LANGSUNG
A2: TAHUN ANGGARAN 2024
A4: NAMA OPD | D4: : DINAS PEKERJAAN UMUM DAN PENATAAN RUANG
A5: BULAN | D5: : 26 November 2024
A6: NO | D6: JENIS PEKERJAAN | F6: SUMBER DANA | G6: BIDANG | H6: DESA | I6: KECAMATAN | J6: ANGGARAN (Rp) | L6: REKANAN | M6: KONTRAK | P6: SPM | T6: SP2D | Z6: ADENDUM 3 | AB6: JANGKA WAKTU | AD6: RENCANA KAS | AF6: REALISASI KEUANGAN | AH6: REALISASI THD RENKAS | AI6: REALISASI FISIK | AJ6: OUTPUT | AL6: KETERANGAN
J7: PENETAPAN | K7: PERUBAHAN | M7: TGL KONTRAK | N7: NO KONTRAK | O7: NILAI KONTRAK | P7: NO 1 | Q7: NILAI 1 | R7: NO 2 | S7: NILAI 2 | T7: NO 1 | U7: NILAI 1 | V7: NO 2 | W7: NILAI 2 | X7: NO 3 | Y7: NILAI 3 | Z7: TGL | AA7: NO | AB7: MULAI | AC7: SELESAI | AD7: Jumlah (Rp) | AE7: % | AF7: Jumlah (Rp) | AG7: % | AH7: % | AI7: % | AJ7: OUTPUT | AK7: SATUAN
A8: A | D8: PROGRAM PENYELENGGARAAN JALAN | J8: =SUM(J9,J10,J16,J25,J27,J66,J68,J70,J71,J200) -> 164,709,500,000 | K8: 315,349,656,428 | AD8: =SUM(AD9,AD10,AD16,AD25,AD27,AD66,AD68,AD70,AD71,AD200) ->  | AE8: =AD8/K8*100 ->  | AF8: =SUM(AF9,AF10,AF16,AF25,AF27,AF66,AF68,AF70,AF71,AF200) -> 32,736,397,800 | AG8: =AF8/K8*100 -> 10.38 | AH8: =AF8/AD8*100 ->  | AI8: =AVERAGE(AI9,AI10,AI16,AI25,AI27,AI66,AI68,AI70,AI71,AI200) -> 107.37%
B9: a | D9: Rekonstruksi Jalan | G9: BM | J9: =SUM(J10:J58) -> 164,271,000,000 | K9: 314,307,770,952 | AD9: ='RENKAS 2024'!#REF! ->  | AF9: 32,618,374,300 | AG9: 10.38 | AI9: =AVERAGE(AI10:AI58) -> 164.84%
C10: 1 | D10: Rehabilitasi Jalan LUWIHAN - BAKALAN (RUAS NO. 149) KEC. KALIKAJAR KAB. WONOSOBO | F10: BANPROV | G10: BM | H10: Kembaran/Bowongso | I10: Kalikajar | J10: 201,000,000 | K10: 201,000,000 | L10: CV. ARFILLA JAYA PUTRA | M10: 2024-09-05 | N10: 0003.3/5964/BM.PUPR/PPKOM/2024;006/SPK.BM/AJP/2024 | O10: 198,500,000 | AB10: 2024-09-05 | AC10: 2024-11-03 | AG10: 0 | AI10: 100.00% | AJ10: 0.134 | AK10: km
C11: 2 | D11: Rehabilitasi Jalan Sempol - Jebengplampitan (Ruas No. 226) KAB. WONOSOBO | F11: BANPROV | G11: BM | H11: Sempol/Plodongan/Soroyudan/Jebengplampitan | I11: Sukoharjo | J11: 3,000,000,000 | K11: 3,000,000,000 | L11: CV. TRISULA PUTRA | M11: 2024-08-16 | N11: 0003.3/5083/BM.PUPR/PPKOM/2024;002/SPK.BM/TP/2024 | O11: 2,986,547,000 | AB11: 2024-08-16 | AC11: 2024-11-13 | AF11: 2,365,345,600 | AG11: 78.84 | AI11: 99.09% | AJ11: 1.200 | AK11: km
C12: 3 | D12: Pembangunan Jalan Ruas Gambaran Lamuk Kaliwiro (176) | F12: APBD | G12: BM | J12: 0 | K12: 350,000,000 | L12: CV. ARTHA PUTRA MANDIRI | M12: 2024-09-24 | N12: 000.3.3/6724/BM.PUPR/PPKOM/2024;05/APM/IX/2024 | AB12: 2024-09-24 | AC12: 2024-12-22 | AI12: 0.00% | AL12: Perubahan , tidak hadir
C13: 4 | D13: Peningkatan Jalan Ruas Kedalon - Tanggekgunung | F13: APBD | G13: BM | J13: 0 | K13: 2,250,000,000 | L13: CV. ARFILLA JAYA PUTRA | M13: 2024-07-04 | N13: 000.3.3/3025/BM.PUPR/PPKOM/2024;003/SPK.BM/AJP/2024 | O13: 2,194,075,000 | AB13: 2024-07-04 | AC13: 2024-10-01 | AF13: 2,194,075,000 | AG13: =AF13/K13*100 -> 97.51 | AI13: 100.00%
B14: b | D14: Rehabilitasi Jalan | G14: BM | J14: =SUM(J15:J139) -> 80,535,000,000 | K14: =SUM(K15:K152) -> 154,253,385,476 | AD14: ='RENKAS 2024'!#REF! ->  | AE14: =AD14/K14*100 ->  | AF14: 8,279,286,064 | AG14: 5.37 | AH14: =AF14/AD14*100 ->  | AI14: =AVERAGE(AI15:AI152) -> 177.70%
C15: 1 | D15: Aspal Jalan Kupangan - Mergosari Ruas 230 Blok Kupangan Kecamatan Sukoharjo (Ruas SK 2023 Mergosari - Kupangan, No Ruas 219) | F15: APBD | G15: BM | H15: Mergosari | I15: Sukoharjo | J15: 190,000,000 | K15: 190,000,000 | L15: CV. GERAK MAJU | M15: Kamis, 26 September 2024 | N15: 0003.2/6861/BM.PUPR/PPKOM/2024 | O15: 189,129,000 | AB15: Kamis, 26 September 2024 | AC15: Minggu, 24 November 2024 | AF15: 189,129,000 | AG15: 99.54 | AI15: 100.00% | AJ15: 0.127 | AK15: km
C16: 2 | D16: Pembangunan Aspal Dukuh Suruhan Desa Wonosroyo Kec. Sukoharjo (Ruas SK 2023 Pasuruhan - Wonosroyo No Ruas 260) | F16: APBD | G16: BM | H16: Wonosroyo | I16: Sukoharjo | J16: 95,000,000 | K16: 95,000,000 | L16: CV. BUMI MAS | M16: 2024-10-03 | N16: 0003.2/7152/BM.PUPR/PPKOM/2024 | O16: 93,955,000 | AB16: 2024-10-03 | AC16: 2024-12-01 | AF16: 46,977,500 | AG16: 49.45 | AI16: 100.00% | AJ16: 0.127 | AK16: km
C17: 3 | D17: Pembangunan Senderan Jalan Manggis - Banyukembar di dusun Lenggerang Desa Kuripan Kec. Watumalang Ruas 246 | F17: APBD | G17: BM | H17: Kuripan | I17: Watumalang | J17: 95,000,000 | K17: 95,000,000 | L17: CV. WAHYU KAMULYAN | M17: 2024-10-03 | N17: 0003.2/7158/BM.PUPR/PPKOM/2024 | O17: 93,153,000 | AB17: 2024-10-03 | AC17: 2024-12-01 | AF17: 93,153,000 | AG17: 98.06 | AI17: 100.00% | AJ17: 0.238 | AK17: km
C18: 4 | D18: Peningkatan Jalan Aspal Ruas Gunungtugel Garunglor Kec Sukoharjo (Ruas SK 2023 Karangtengah - Gunungtugel, No Ruas 231) | F18: APBD | G18: BM | H18: Gunungtugel | I18: Sukoharjo | J18: 190,000,000 | K18: 190,000,000 | L18: CV. MABUA PRATAMA | M18: Jumat, 20 September 2024 | N18: 0003.2/6605/BM.PUPR/PPKOM/2024 | O18: 189,310,000 | AB18: Jumat, 20 September 2024 | AC18: Senin, 18 November 2024 | AF18: 189,310,000 | AG18: 99.64 | AI18: 100.00%
C19: 5 | D19: Peningkatan Jalan Gumawang Krinjing - Pagentan (Ruas SK 2023 Krinjing - Pagentan, No Ruas 267) | F19: APBD | G19: BM | H19: Krinjing/Lumajang | I19: Watumalang | J19: 190,000,000 | K19: 190,000,000 | L19: CV. WAHYU KAMULYAN | M19: Kamis, 26 September 2024 | N19: 0003.2/6867/BM.PUPR/PPKOM/2024 | O19: 184,979,000 | AB19: Kamis, 26 September 2024 | AC19: Minggu, 24 November 2024 | AF19: 184,979,000 | AG19: 97.36 | AI19: 100.00% | AJ19: 0.178 | AK19: km
C20: 6 | D20: Peningkatan Jalan Kalilang - Bulu Ruas No. 97 (Ruas SK 2023 Kalilang - Bulu, No Ruas 82) | F20: APBD | G20: BM | H20: Kayugiyang | I20: Garung | J20: 190,000,000 | K20: 190,000,000 | L20: CV. MABUA PRATAMA | M20: Jumat, 27 September 2024 | N20: 0003.2/6915/BM.PUPR/PPKOM/2024 | O20: 189,347,000 | AB20: Jumat, 27 September 2024 | AC20: Senin, 25 November 2024 | AF20: 94,673,500 | AG20: 49.83 | AI20: 96.50%
C21: 7 | D21: Peningkatan Jalan Pasar Lawas - Bengkok (Batas Banjarnegara) Kecamatan Watumalang Ruas 272 (Ruas SK 2023 Pasarlawas - Batas Kabupaten Banjarnegara, No Ruas 265) | F21: APBD | G21: BM | H21: Binangun | I21: Watumalang | J21: 190,000,000 | K21: 190,000,000 | L21: CV. PUTRA BINANGUN | M21: Kamis, 26 September 2024 | N21: 0003.2/6870/BM.PUPR/PPKOM/2024 | O21: 187,789,000 | AB21: Kamis, 26 September 2024 | AC21: Minggu, 24 November 2024 | AF21: 93,894,500 | AG21: 49.42 | AI21: 67.20% | AJ21: 0.120 | AK21: km
C22: 8 | D22: Peningkatan Jalan Poros Sendangsari No. 95 | F22: APBD | G22: BM | H22: Sendangsari | I22: Garung | J22: 142,500,000 | K22: 142,500,000 | L22: CV. ANDALAN KONSTRUKSI | M22: Jumat, 27 September 2024 | N22: 0003.2/6912/BM.PUPR/PPKOM/2024 | O22: 138,346,000 | AB22: Jumat, 27 September 2024 | AC22: Senin, 25 November 2024 | AF22: 69,173,000 | AG22: 48.54 | AI22: 95.00% | AJ22: 0.120 | AK22: km
C23: 9 | D23: Peningkatan Jalan Ruas 98 Aspal Jalan Tegalsari - Mlandi Kec. Garung Kab. Wonosobo (Ruas SK 2023 Tegalsari - Mlandi, No Ruas 83) | F23: APBD | G23: BM | H23: Tegalsari | I23: Garung | J23: 190,000,000 | K23: 190,000,000 | L23: CV. WAHYU ABADI PERKASA | M23: Jumat, 27 September 2024 | N23: 0003.2/6291/BM.PUPR/PPKOM/2024 | O23: 188,292,000 | AB23: Jumat, 27 September 2024 | AC23: Senin, 25 November 2024 | AF23: 83,331,992 | AG23: 43.86 | AI23: 95.80% | AJ23: 0.178 | AK23: km
C24: 10 | D24: Rehabilitasi Jalan Banyukembar - Welahan, No Ruas 221 | F24: APBD | G24: BM | H24: Banyukembar/Wonoroto | I24: Watumalang | J24: 200,000,000 | K24: 200,000,000 | L24: CV. PUTRA BINANGUN | M24: 17 okt 24 | N24: 0003.2/7795/BM.PUPR/PPKOM/2024 | O24: 198,156,000 | AB24: 2024-10-17 | AC24: 2024-12-15 | AF24: 99,078,000 | AG24: 49.54 | AI24: 94.50% | AJ24: 0.178 | AK24: km
C25: 11 | D25: Senderan Jalan Sempol - Wonosroyo Ruas 234 Blok Jebengplampitan (Ruas SK 2023 Sempol - Jebengplampitan, No Ruas 226) | F25: APBD | G25: BM | H25: Jebengplampitan | I25: Sukoharjo | J25: 142,500,000 | K25: 142,500,000 | L25: CV. BHAVANA | M25: Kamis, 26 September 2024 | N25: 0003.2/6864/BM.PUPR/PPKOM/2024 | O25: 142,092,000 | AB25: Kamis, 26 September 2024 | AC25: Minggu, 24 November 2024 | AF25: 71,046,000 | AG25: 49.86 | AI25: 72.00% | AJ25: 0.133 | AK25: km
C26: 12 | D26: Rehabilitasi/Peningkatan Ruas Jalan Kyuni - Temiling (119) dan Sapuran - Marongsari (116) | F26: APBD | G26: BM | K26: 2,195,000,000 | L26: CV.WARNA INDAH | M26: 28 Oktober 2024 | N26: 0003.3/8263/BM.PUPR/PPKOM/2024;24.2/cv.wi/x/2024 | O26: 2,184,081,000 | AB26: 28 Oktober 2024 | AC26: 16 Desember 2024 | AG26: 0 | AI26: 97.00%
C27: 13 | D27: Rehabilitasi/Peningkatan Ruas Jalan Sukoharjo - Sempol (223) | F27: APBD | G27: BM | K27: 603,385,476 | L27: CV.WARNA INDAH | M27: 28 Oktober 2024 | N27: 0003.3/8283/BM.PUPR/PPKOM/2024;24.1/cv.wi/X/2024 | O27: 597,399,000 | AB27: 28 Oktober 2024 | AC27: 16 Desember 2024 | AG27: 0 | AI27: 100.00%
B28: c | D28: Pemeliharaan Rutin Jalan | F28: APBD | G28: BM | J28: =SUM(J29:J45) -> 39,360,000,000 | K28: =SUM(K29:K46) -> 74,820,000,000 | AD28: ='RENKAS 2024'!#REF! ->  | AE28: =AD28/K28*100 ->  | AF28: 5,847,690,164 | AG28: 7.82 | AH28: =AF28/AD28*100 ->  | AI28: =AVERAGE(AI29:AK46) -> 2837.78%
C29: 1 | D29: Pemeliharaan Jalan Ruas Jawar - Kalibeber | F29: APBD | G29: BM | K29: 1,200,000,000 | L29: CV. GENERASI BARU HARSYA | M29: 2024-07-05 | N29: 000.3.3/3089/BM.PUPR/PPKOM/2024;001/SPK.BM/GBH/2024 | O29: 1,152,171,000 | AB29: 2024-07-05 | AC29: 2024-10-02 | AF29: 1,152,171,000 | AG29: 96.01 | AI29: 100.00%
A30: B | D30: PROGRAM PENGELOLAAN DAN PENGEMBANGAN SISTEM PENYEDIAAN AIR MINUM | G30: CK | J30: =SUM(J31,J34) -> 15,820,000,000 | K30: 29,900,000,000 | AD30: =SUM(AD31,AD34) ->  | AE30: =AD30/K30*100 ->  | AF30: =SUM(AF31,AF34) -> 12,923,086,857 | AG30: 43.22 | AH30: =AF30/AD30*100 ->  | AI30: =AVERAGE(AI31,AI34) -> 56.57%
B31: a | D31: Perluasan Sistem Penyediaan Air Minum (SPAM) Jaringan Perpipaan | F31: DAK | G31: CK | J31: =SUM(J34:J60) -> 11,140,000,000 | K31: =SUM(K34:K62) -> 21,230,000,000 | AD31: ='RENKAS 2024'!#REF! ->  | AF31: 4,890,268,206 | AG31: 23.03 | AI31: =AVERAGE(AI34:AI60) -> 58.51%
C32: 1 | D32: Perluasan SPAM Jaringan Perpipaan Desa Sigedang Kec. Kejajar | F32: DAK | G32: CK | H32: Sigedang | I32: Kejajar | J32: 660,000,000 | K32: 660,000,000 | L32: TPS KKM SIDO MUKTI | M32: 01 APRIL 2024 | N32: 000.3.4/003/PKS/CK.01/2024 | O32: 660,000,000 | AB32: 01 APRIL 2024 | AC32: 21 Desember 2024 | AF32: 165,000,000 | AG32: 25.00 | AI32: 32.70% | AJ32: 220 | AK32: SR
C33: 2 | D33: Perluasan SPAM Jaringan Perpipaan Desa Sikunang Kec. Kejajar | F33: DAK | G33: CK | H33: Sikunang | I33: Kejajar | J33: 600,000,000 | K33: 600,000,000 | L33: TPS KKM TIRTA BISMA | M33: 01 APRIL 2024 | N33: 000.3.4/004/PKS/CK.01/2024 | O33: 600,000,000 | AB33: 01 APRIL 2024 | AC33: 21 Desember 2024 | AF33: 150,000,000 | AG33: 25.00 | AI33: 26.30% | AJ33: 200 | AK33: SR
A34: C | D34: PROGRAM PENGELOLAAN DAN PENGEMBANGAN SISTEM AIR LIMBAH | G34: CK | J34: =SUM(J35,J38,J46,J47,J108) -> 4,680,000,000 | K34: 8,670,000,000 | AD34: =SUM(AD35,AD38,AD46,AD47,AD108) ->  | AE34: =AD34/K34*100 ->  | AF34: =SUM(AF35,AF38,AF46,AF47,AF108) -> 8,032,818,651 | AG34: 92.65 | AH34: =AF34/AD34*100 ->  | AI34: =AVERAGE(AI35,AI38,AI46,AI47,AI108) -> 54.63%
B35: a | D35: Penyediaan Sub Sistem Pengolahan Air Limbah Domestik (SPALD) Setempat | G35: CK | J35: =SUM(J36:J95) -> 3,230,000,000 | K35: 6,280,000,000 | AD35: ='RENKAS 2024'!#REF! ->  | AF35: 7,438,813,741 | AG35: 118.45 | AI35: =AVERAGE(AI36:AI95) -> 59.07%
C36: 1 | D36: Pembangunan Tangki Septik Individu Desa Jengkol Kec. Garung | F36: HALS | G36: CK | H36: Jengkol | I36: Garung | J36: 150,000,000 | K36: 150,000,000 | L36: TPS KSM CIPTA KARYA SEHAT | M36: 01 APRIL 2024 | N36: 000.3.4/002/PKS/CK.03/2024 | O36: 150,000,000 | AB36: 01 APRIL 2024 | AC36: 14 Desember 2024 | AF36: 41,959,200 | AG36: 27.97 | AI36: 65.88% | AJ36: 25 | AK36: SR
C37: 2 | D37: Pembangunan Tangki Septik Individu Desa Blederan Kec. Mojotengah | F37: HALS | G37: CK | H37: Blederan | I37: Mojotengah | J37: 180,000,000 | K37: 180,000,000 | L37: TPS KSM SADAR LINGKUNGAN | M37: 01 APRIL 2024 | N37: 000.3.4/009/PKS/CK.03/2024 | O37: 180,000,000 | AB37: 01 APRIL 2024 | AC37: 14 Desember 2024 | AF37: 49,142,250 | AG37: 27.30 | AI37: 88.71% | AJ37: 30 | AK37: SR
A38: D | D38: PROGRAM PENATAAN BANGUNAN DAN LINGKUNGANNYA | F38: APBD | G38: CK | J38: 1,450,000,000 | K38: 2,390,000,000 | AD38: 1,446,700,000 | AE38: 60.53 | AF38: 594,004,910 | AG38: 24.85 | AH38: 41.06 | AI38: 50.18%
B39: a | D39: Penataan Bangunan dan Lingkungan Kawasan Cagar Budaya, Kawasan Pariwisata, Kawasan Sistem Perkotaan Nasional dan Kawasan Strategis Lainnya | F39: APBD | G39: CK | J39: 1,450,000,000 | K39: 2,390,000,000 | AD39: 1,446,700,000 | AE39: 60.53 | AF39: 594,004,910 | AG39: 24.85 | AH39: 41.06 | AI39: 50.18%
C40: 1 | D40: Pembangunan Gedung Provos Polres Wonosobo | F40: APBD | G40: CK | J40: 0 | K40: 975,000,000 | L40: CV. Sendiko Lancar Langgeng | M40: 30 Agustus 2024 | N40: 000.3.3/ 3080.1 /CK/2024 | O40: 962,733,000 | AB40: 30 Agustus 2024 | AC40: 27 Desember 2024 | AF40: 288,819,000 | AG40: =AF40/K40*100 -> 29.62 | AI40: 45.69%
C41: 2 | D41: Rehab Rumah Dinas Kejaksaan | F41: APBD | G41: CK | J41: 0 | K41: 195,000,000 | L41: CV. Bhavana | M41: 2024-09-11 | N41: 000.3.2/ 4140.1 /CK/2024 | O41: 194,524,000 | AB41: 2024-09-11 | AC41: 9 Desember 2024 | AG41: 0 | AI41: 53.76%

Sheet RENKAS 2024
A2: Uraian | B2: Jumlah Anggaran | C2: Jumlah RAK | D2: RENKAS SD BULAN INI | E2: Semester I | K2: Semester II
E3: Triwulan I | H3: Triwulan II | K3: Triwulan III | N3: Triwulan IV
E4: Januari | F4: Februari | G4: Maret | H4: April | I4: Mei | J4: Juni | K4: Juli | L4: Agustus | M4: September | N4: Oktober | O4: November | P4: Desember
A6: Dinas Pekerjaan Umum dan penataan ruang | B6: 176,970,036,961 | C6: 175,930,035,364 | D6: =SUM(D7:D81) -> 173,104,324,503 | E6: 1,189,470,530 | F6: 2,932,010,189 | G6: 27,490,246,217 | H6: 21,354,688,634 | I6: 35,705,250,724 | J6: 42,486,515,914 | K6: 21,116,775,220 | L6: 15,486,665,228 | M6: 3,332,869,428 | N6: 2,009,832,418 | O6: 1,400,835,390 | P6: 1,424,875,471
A7: URUSAN PEMERINTAHAN BIDANG PEKERJAAN UMUM DAN PENATAAN RUANG | B7: 176,970,036,961 | C7: 175,930,035,364 | E7: 1,189,470,530 | F7: 2,932,010,189 | G7: 27,490,246,217 | H7: 21,354,688,634 | I7: 35,705,250,724 | J7: 42,486,515,914 | K7: 21,116,775,220 | L7: 15,486,665,228 | M7: 3,332,869,428 | N7: 2,009,832,418 | O7: 1,400,835,390 | P7: 1,424,875,471
A8: PROGRAM PENUNJANG URUSAN PEMERINTAHAN DAERAH KABUPATEN/KOTA | B8: 12,649,898,912 | C8: 12,649,898,912 | E8: 812,469,568 | F8: 974,581,754 | G8: 915,776,764 | H8: 1,863,180,046 | I8: 939,820,861 | J8: 1,724,863,120 | K8: 928,136,635 | L8: 930,946,761 | M8: 913,736,511 | N8: 896,962,101 | O8: 894,021,211 | P8: 855,403,580
A9: Perencanaan, Penganggaran, dan Evaluasi Kinerja Perangkat Daerah | B9: 70,000,000 | C9: 70,000,000 | E9: 5,741,016 | F9: 17,368,900 | G9: 600,000 | H9: 11,400,000 | I9: 12,400,000 | J9: 7,535,000 | K9: 5,069,084 | L9: 3,980,000 | M9: 5,400,000 | N9: 0 | O9: 506,000 | P9: 0
A10: Penyusunan Dokumen Perencanaan Perangkat Daerah | B10: 70,000,000 | C10: 70,000,000 | D10: =SUM(E10:N10) -> 69,494,000 | E10: 5,741,016 | F10: 17,368,900 | G10: 600,000 | H10: 11,400,000 | I10: 12,400,000 | J10: 7,535,000 | K10: 5,069,084 | L10: 3,980,000 | M10: 5,400,000 | N10: 0 | O10: 506,000 | P10: 0
A11: Administrasi Keuangan Perangkat Daerah | B11: 10,685,898,912 | C11: 10,685,898,912 | E11: 710,656,730 | F11: 716,485,502 | G11: 749,158,989 | H11: 1,622,994,924 | I11: 765,178,089 | J11: 1,530,356,173 | K11: 765,178,089 | L11: 765,178,089 | M11: 765,178,089 | N11: 765,178,089 | O11: 765,178,089 | P11: 765,178,060
A12: Penyediaan Gaji dan Tunjangan ASN | B12: 10,685,898,912 | C12: 10,685,898,912 | D12: =SUM(E12:N12) -> 9,155,542,763 | E12: 710,656,730 | F12: 716,485,502 | G12: 749,158,989 | H12: 1,622,994,924 | I12: 765,178,089 | J12: 1,530,356,173 | K12: 765,178,089 | L12: 765,178,089 | M12: 765,178,089 | N12: 765,178,089 | O12: 765,178,089 | P12: 765,178,060
A13: Administrasi Umum Perangkat Daerah | B13: 392,000,000 | C13: 392,000,000 | E13: 3,494,584 | F13: 61,269,929 | G13: 24,375,537 | H13: 53,417,884 | I13: 37,778,034 | J13: 34,484,709 | K13: 39,122,224 | L13: 41,361,434 | M13: 29,356,184 | N13: 33,131,774 | O13: 27,442,384 | P13: 6,765,323
A14: Penyediaan Komponen Instalasi Listrik/Penerangan Bangunan Kantor | B14: 10,000,000 | C14: 10,000,000 | D14: =SUM(E14:N14) -> 8,735,000 | E14: 0 | F14: 3,820,820 | G14: 487,500 | H14: 0 | I14: 1,805,650 | J14: 0 | K14: 1,033,980 | L14: 1,581,250 | M14: 0 | N14: 5,800 | O14: 1,265,000 | P14: 0
A15: Penyediaan Peralatan dan Perlengkapan Kantor | B15: 50,000,000 | C15: 50,000,000 | D15: 47,973,140 | E15: 0 | F15: 19,181,525 | G15: 1,615,300 | H15: 6,777,300 | I15: 1,504,800 | J15: 4,574,125 | K15: 3,505,100 | L15: 3,534,600 | M15: 2,426,600 | N15: 4,853,790 | O15: 2,026,800 | P15: 60
A16: Penyediaan Peralatan Rumah Tangga | B16: 60,000,000 | C16: 60,000,000 | D16: 54,799,950 | E16: 3,327,917 | F16: 7,102,917 | G16: 3,460,237 | H16: 6,903,917 | I16: 4,152,917 | J16: 4,927,917 | K16: 8,301,377 | L16: 8,437,917 | M16: 3,327,917 | N16: 4,856,917 | O16: 4,877,917 | P16: 322,133
A17: Penyediaan Barang Cetakan dan Penggandaan | B17: 20,000,000 | C17: 20,000,000 | D17: 18,015,700 | E17: 0 | F17: 5,693,000 | G17: 1,320,000 | H17: 0 | I17: 3,102,000 | J17: 0 | K17: 4,759,100 | L17: 0 | M17: 1,419,000 | N17: 1,722,600 | O17: 990,000 | P17: 994,300
A18: Penyediaan Bahan Bacaan dan Peraturan Perundang-undangan | B18: 2,000,000 | C18: 2,000,000 | D18: 1,666,670 | E18: 166,667 | F18: 166,667 | G18: 166,667 | H18: 166,667 | I18: 166,667 | J18: 166,667 | K18: 166,667 | L18: 166,667 | M18: 166,667 | N18: 166,667 | O18: 166,667 | P18: 166,663
A19: Penyelenggaraan Rapat Koordinasi dan Konsultasi SKPD | B19: 250,000,000 | C19: 250,000,000 | D19: 226,601,833 | E19: 0 | F19: 25,305,000 | G19: 17,325,833 | H19: 39,570,000 | I19: 27,046,000 | J19: 24,816,000 | K19: 21,356,000 | L19: 27,641,000 | M19: 22,016,000 | N19: 21,526,000 | O19: 18,116,000 | P19: 5,282,167
A20: Penyediaan Jasa Penunjang Urusan Pemerintahan Daerah | B20: 1,027,000,000 | C20: 1,027,000,000 | E20: 78,277,238 | F20: 99,567,423 | G20: 90,697,238 | H20: 131,457,238 | I20: 80,977,238 | J20: 83,477,238 | K20: 81,077,238 | L20: 80,977,238 | M20: 81,277,238 | N20: 72,977,238 | O20: 72,977,238 | P20: 73,260,197
A21: Penyediaan Jasa Surat Menyurat | B21: 2,000,000 | C21: 2,000,000 | D21: =SUM(E21:N21) -> 2,000,000 | E21: 0 | F21: 0 | G21: 1,900,000 | H21: 0 | I21: 0 | J21: 0 | K21: 100,000 | L21: 0 | M21: 0 | N21: 0 | O21: 0 | P21: 0
A22: Penyediaan Jasa Komunikasi, Sumber Daya Air dan Listrik | B22: 100,000,000 | C22: 100,000,000 | D22: 95,833,000 | E22: 10,383,300 | F22: 10,383,300 | G22: 10,383,300 | H22: 10,383,300 | I22: 10,383,300 | J22: 10,383,300 | K22: 10,383,300 | L22: 10,383,300 | M22: 10,683,300 | N22: 2,083,300 | O22: 2,083,300 | P22: 2,083,700
A23: Penyediaan Jasa Pelayanan Umum Kantor | B23: 925,000,000 | C23: 925,000,000 | D23: 782,929,565 | E23: 67,893,938 | F23: 89,184,123 | G23: 78,413,938 | H23: 121,073,938 | I23: 70,593,938 | J23: 73,093,938 | K23: 70,593,938 | L23: 70,593,938 | M23: 70,593,938 | N23: 70,893,938 | O23: 70,893,938 | P23: 71,176,497
A24: Pemeliharaan Barang Milik Daerah Penunjang Urusan Pemerintahan Daerah | B24: 475,000,000 | C24: 475,000,000 | E24: 14,300,000 | F24: 79,890,000 | G24: 50,945,000 | H24: 43,910,000 | I24: 43,487,500 | J24: 69,010,000 | K24: 37,690,000 | L24: 39,450,000 | M24: 32,525,000 | N24: 25,675,000 | O24: 27,917,500 | P24: 10,200,000
A25: Penyediaan Jasa Pemeliharaan, Biaya Pemeliharaan, Pajak dan Perizinan Kendaraan Dinas Operasional atau Lapangan | B25: 350,000,000 | C25: 350,000,000 | D25: =SUM(E25:N25) -> 314,052,500 | E25: 0 | F25: 56,850,000 | G25: 31,100,000 | H25: 31,100,000 | I25: 30,802,500 | J25: 58,500,000 | K25: 26,100,000 | L25: 30,600,000 | M25: 27,850,000 | N25: 21,150,000 | O25: 25,747,500 | P25: 10,200,000
A26: Pemeliharaan Peralatan dan Mesin Lainnya | B26: 25,000,000 | C26: 25,000,000 | D26: 24,170,000 | E26: 0 | F26: 4,690,000 | G26: 2,500,000 | H26: 2,800,000 | I26: 2,000,000 | J26: 0 | K26: 5,080,000 | L26: 3,000,000 | M26: 2,500,000 | N26: 1,600,000 | O26: 830,000 | P26: 0
A27: Pemeliharaan/Rehabilitasi Gedung Kantor dan Bangunan Lainnya | B27: 100,000,000 | C27: 100,000,000 | D27: 98,660,000 | E27: 14,300,000 | F27: 18,350,000 | G27: 17,345,000 | H27: 10,010,000 | I27: 10,685,000 | J27: 10,510,000 | K27: 6,510,000 | L27: 5,850,000 | M27: 2,175,000 | N27: 2,925,000 | O27: 1,340,000 | P27: 0
A28: PROGRAM PENGELOLAAN SUMBER DAYA AIR SDA | B28: 8,551,250,000 | C28: 8,551,250,000 | E28: 101,795,603 | F28: 107,750,983 | G28: 195,837,103 | H28: 832,190,903 | I28: 597,693,933 | J28: 614,095,853 | K28: 3,897,736,103 | L28: 799,665,103 | M28: 713,894,903 | N28: 501,309,313 | O28: 100,415,103 | P28: 88,865,097
A29: Pengelolaan SDA dan Bangunan Pengaman Pantai pada Wilayah Sungai WS dalam 1 Satu) Daerah Kabupaten/Kota | B29: 50,000,000 | C29: 50,000,000 | E29: 105,600 | F29: 1,398,500 | G29: 1,482,650 | H29: 19,264,840 | I29: 582,500 | J29: 3,920,700 | K29: 6,172,500 | L29: 6,049,500 | M29: 6,049,500 | N29: 4,874,710 | O29: 49,500 | P29: 49,500
A30: Pembinaan dan Pemberdayaan Kelembagaan Pengelolaan SDA Kewenangan Kabupaten/Kota | B30: 50,000,000 | C30: 50,000,000 | D30: =SUM(E30:N30) -> 49,901,000 | E30: 105,600 | F30: 1,398,500 | G30: 1,482,650 | H30: 19,264,840 | I30: 582,500 | J30: 3,920,700 | K30: 6,172,500 | L30: 6,049,500 | M30: 6,049,500 | N30: 4,874,710 | O30: 49,500 | P30: 49,500
A31: Pengembangan dan Pengelolaan Sistem Irigasi Primer dan Sekunder pada Daerah Irigasi yang Luasnya di Bawah 1000 Ha dalam 1 Satu) Daerah Kabupaten/Kota | B31: 8,501,250,000 | C31: 8,501,250,000 | E31: 101,690,003 | F31: 106,352,483 | G31: 194,354,453 | H31: 812,926,063 | I31: 597,111,433 | J31: 610,175,153 | K31: 3,891,563,603 | L31: 793,615,603 | M31: 707,845,403 | N31: 496,434,603 | O31: 100,365,603 | P31: 88,815,597
A32: Rehabilitasi Jaringan Irigasi Permukaan | B32: 5,251,250,000 | C32: 5,251,250,000 | D32: =SUM(E32:N32) -> 5,245,813,920 | E32: 2,718,040 | F32: 5,670,900 | G32: 23,318,040 | H32: 5,718,040 | I32: 6,220,900 | J32: 117,695,840 | K32: 3,539,468,040 | L32: 550,293,040 | M32: 598,793,040 | N32: 395,918,040 | O32: 2,718,040 | P32: 2,718,040
A33: Operasi dan Pemeliharaan Jaringan Irigasi Permukaan | B33: 2,500,000,000 | C33: 2,500,000,000 | D33: 2,316,353,880 | E33: 98,366,363 | F33: 98,753,183 | G33: 159,902,613 | H33: 459,465,523 | I33: 393,642,633 | J33: 303,282,513 | K33: 351,523,063 | L33: 243,273,063 | M33: 107,677,863 | N33: 100,467,063 | O33: 97,598,063 | P33: 86,048,057
A34: Operasi dan Pemeliharaan Bendung Irigasi | B34: 650,000,000 | C34: 650,000,000 | D34: 649,901,000 | E34: 605,600 | F34: 1,928,400 | G34: 11,133,800 | H34: 247,742,500 | I34: 197,247,900 | J34: 189,196,800 | K34: 572,500 | L34: 49,500 | M34: 1,374,500 | N34: 49,500 | O34: 49,500 | P34: 49,500
A35: Penyusunan Rencana Teknis dan Dokumen Lingkungan Hidup untuk Konstruksi Irigasi dan Rawa | B35: 100,000,000 | C35: 100,000,000 | D35: 100,000,000 | E35: 0 | F35: 0 | G35: 0 | H35: 100,000,000 | I35: 0 | J35: 0 | K35: 0 | L35: 0 | M35: 0 | N35: 0 | O35: 0 | P35: 0
A36: PROGRAM PENGELOLAAN DAN PENGEMBANGAN SISTEM PENYEDIAAN AIR MINUM | B36: 15,583,264,000 | C36: 15,583,264,000 | E36: 0 | F36: 199,397,406 | G36: 6,019,927,064 | H36: 108,124,114 | I36: 100,462,504 | J36: 8,607,712,864 | K36: 80,792,864 | L36: 82,892,864 | M36: 82,442,864 | N36: 100,292,864 | O36: 67,072,864 | P36: 134,145,728
A37: Pengelolaan dan Pengembangan Sistem Penyediaan Air Minum SPAM di Daerah Kabupaten/Kota | B37: 15,583,264,000 | C37: 15,583,264,000 | E37: 0 | F37: 199,397,406 | G37: 6,019,927,064 | H37: 108,124,114 | I37: 100,462,504 | J37: 8,607,712,864 | K37: 80,792,864 | L37: 82,892,864 | M37: 82,442,864 | N37: 100,292,864 | O37: 67,072,864 | P37: 134,145,728
A38: Pembinaan dan Pemberdayaan Masyarakat dalam Pengelolaan dan Pengembangan Sistem Penyediaan Air Minum SPAM | B38: 45,000,000 | C38: 45,000,000 | D38: =SUM(E38:N38) -> 45,000,000 | E38: 0 | F38: 10,416,850 | G38: 10,278,150 | H38: 9,435,000 | I38: 10,370,000 | J38: 4,500,000 | K38: 0 | L38: 0 | M38: 0 | N38: 0 | O38: 0 | P38: 0
A39: Perluasan Sistem Penyediaan Air Minum SPAM Jaringan Perpipaan | B39: 15,538,264,000 | C39: 15,538,264,000 | D39: 15,337,045,408 | E39: 0 | F39: 188,980,556 | G39: 6,009,648,914 | H39: 98,689,114 | I39: 90,092,504 | J39: 8,603,212,864 | K39: 80,792,864 | L39: 82,892,864 | M39: 82,442,864 | N39: 100,292,864 | O39: 67,072,864 | P39: 134,145,728
A40: PROGRAM PENGELOLAAN DAN PENGEMBANGAN SISTEM AIR LIMBAH | B40: 19,036,497,000 | C40: 19,036,497,000 | E40: 0 | F40: 198,076,308 | G40: 6,697,001,628 | H40: 2,080,644,308 | I40: 7,044,594,588 | J40: 2,299,641,552 | K40: 152,413,088 | L40: 114,396,088 | M40: 108,796,088 | N40: 108,796,088 | O40: 78,004,088 | P40: 154,133,176
A41: Pengelolaan dan Pengembangan Sistem Air Limbah Domestik dalam Daerah Kabupaten/Kota | B41: 19,036,497,000 | C41: 19,036,497,000 | E41: 0 | F41: 198,076,308 | G41: 6,697,001,628 | H41: 2,080,644,308 | I41: 7,044,594,588 | J41: 2,299,641,552 | K41: 152,413,088 | L41: 114,396,088 | M41: 108,796,088 | N41: 108,796,088 | O41: 78,004,088 | P41: 154,133,176
A42: Optimalisasi Instalasi Pengolahan Lumpur Tinja IPLT | B42: 100,000,000 | C42: 100,000,000 | D42: =SUM(E42:N42) -> 91,750,000 | E42: 0 | F42: 19,110,000 | G42: 19,110,000 | H42: 19,110,000 | I42: 17,545,000 | J42: 3,375,000 | K42: 3,375,000 | L42: 3,375,000 | M42: 3,375,000 | N42: 3,375,000 | O42: 3,375,000 | P42: 4,875,000
A43: Pembangunan Sistem Pengelolaan Air Limbah Domestik SPALD Terpusat Skala Permukiman | B43: 1,545,000,000 | C43: 1,545,000,000 | D43: 1,545,000,000 | E43: 0 | F43: 36,042,000 | G43: 679,908,000 | H43: 4,050,000 | I43: 0 | J43: 825,000,000 | K43: 0 | L43: 0 | M43: 0 | N43: 0 | O43: 0 | P43: 0
A44: Operasi dan Pemeliharaan Sistem Pengelolaan Air Limbah Domestik SPALD | B44: 100,000,000 | C44: 100,000,000 | D44: 100,000,000 | E44: 0 | F44: 902,220 | G44: 10,465,780 | H44: 9,132,000 | I44: 9,500,000 | J44: 70,000,000 | K44: 0 | L44: 0 | M44: 0 | N44: 0 | O44: 0 | P44: 0
A45: Penyediaan Sub Sistem Pengolahan Air Limbah Domestik SPALD Setempat | B45: 17,241,497,000 | C45: 17,241,497,000 | D45: 17,017,609,736 | E45: 0 | F45: 139,622,088 | G45: 5,984,616,418 | H45: 2,040,975,238 | I45: 7,010,798,088 | J45: 1,382,696,552 | K45: 137,038,088 | L45: 111,021,088 | M45: 105,421,088 | N45: 105,421,088 | O45: 74,629,088 | P45: 149,258,176
A46: Pembinaan dan Pemberdayaan Masyarakat dalam Pengembangan Sistem Pengelolaan Air Limbah Domestik SPALD | B46: 50,000,000 | C46: 50,000,000 | D46: 50,000,000 | E46: 0 | F46: 2,400,000 | G46: 2,901,430 | H46: 7,377,070 | I46: 6,751,500 | J46: 18,570,000 | K46: 12,000,000 | L46: 0 | M46: 0 | N46: 0 | O46: 0 | P46: 0
A47: PROGRAM PENGELOLAAN DAN PENGEMBANGAN SISTEM DRAINASE | B47: 350,000,000 | C47: 350,000,000 | E47: 20,326,650 | F47: 20,826,650 | G47: 108,391,650 | H47: 23,026,650 | I47: 22,426,650 | J47: 24,820,150 | K47: 21,526,650 | L47: 21,526,650 | M47: 22,307,990 | N47: 21,767,010 | O47: 21,526,650 | P47: 21,526,650
A48: Pengelolaan dan Pengembangan Sistem Drainase yang Terhubung Langsung dengan Sungai dalam Daerah Kabupaten/Kota | B48: 350,000,000 | C48: 350,000,000 | E48: 20,326,650 | F48: 20,826,650 | G48: 108,391,650 | H48: 23,026,650 | I48: 22,426,650 | J48: 24,820,150 | K48: 21,526,650 | L48: 21,526,650 | M48: 22,307,990 | N48: 21,767,010 | O48: 21,526,650 | P48: 21,526,650
A49: Operasi dan Pemeliharaan Sistem Drainase Perkotaan | B49: 350,000,000 | C49: 350,000,000 | D49: =SUM(E49:N49) -> 306,946,700 | E49: 20,326,650 | F49: 20,826,650 | G49: 108,391,650 | H49: 23,026,650 | I49: 22,426,650 | J49: 24,820,150 | K49: 21,526,650 | L49: 21,526,650 | M49: 22,307,990 | N49: 21,767,010 | O49: 21,526,650 | P49: 21,526,650
A50: PROGRAM PENATAAN BANGUNAN GEDUNG | B50: 813,120,000 | C50: 813,120,000 | E50: 73,878,226 | F50: 146,324,956 | G50: 71,204,576 | H50: 57,709,246 | I50: 84,457,576 | J50: 54,253,576 | K50: 57,696,376 | L50: 51,584,576 | M50: 57,832,076 | N50: 52,184,576 | O50: 55,186,096 | P50: 50,808,144
A51: Penyelenggaraan Bangunan Gedung di Wilayah Daerah Kabupaten/Kota, Pemberian Izin Mendirikan Bangunan IMB dan Sertifikat Laik Fungsi Bangunan Gedung | B51: 813,120,000 | C51: 813,120,000 | E51: 73,878,226 | F51: 146,324,956 | G51: 71,204,576 | H51: 57,709,246 | I51: 84,457,576 | J51: 54,253,576 | K51: 57,696,376 | L51: 51,584,576 | M51: 57,832,076 | N51: 52,184,576 | O51: 55,186,096 | P51: 50,808,144
A52: Penyusunan Kebijakan terkait Penyelenggaraan Bangunan Gedung | B52: 79,800,000 | C52: 79,800,000 | D52: =SUM(E52:N52) -> 79,800,000 | E52: 1,000,000 | F52: 75,713,530 | G52: 1,050,000 | H52: 824,670 | I52: 250,000 | J52: 0 | K52: 961,800 | L52: 0 | M52: 0 | N52: 0 | O52: 0 | P52: 0
A53: Penyelenggaraan Penerbitan Persetujuan Bangunan Gedung PBG , Sertifikat Laik Fungsi SLF , Surat Bukti Kepemilikan Bangunan Gedung SBKBG , Rencana Teknis Pembongkaran Bangunan Gedung RTB , Tim Profesi Ahli TPA , Tim Penilai Teknis TPT , Penilik, dan Pendataan Bangunan Gedung melalui SIMBG | B53: 733,320,000 | C53: 733,320,000 | D53: 627,325,760 | E53: 72,878,226 | F53: 70,611,426 | G53: 70,154,576 | H53: 56,884,576 | I53: 84,207,576 | J53: 54,253,576 | K53: 56,734,576 | L53: 51,584,576 | M53: 57,832,076 | N53: 52,184,576 | O53: 55,186,096 | P53: 50,808,144
A54: PROGRAM PENATAAN BANGUNAN DAN LINGKUNGANNYA | B54: 2,250,000,000 | C54: 1,450,000,000 | E54: 0 | F54: 5,566,290 | G54: 51,566,920 | H54: 15,572,700 | I54: 285,594,090 | J54: 246,450,000 | K54: 267,500,000 | L54: 1,100,000 | M54: 572,250,000 | N54: 1,100,000 | O54: 1,100,000 | P54: 2,200,000
A55: Penyelenggaraan Penataan Bangunan dan Lingkungannya di Daerah Kabupaten/Kota | B55: 2,250,000,000 | C55: 1,450,000,000 | E55: 0 | F55: 5,566,290 | G55: 51,566,920 | H55: 15,572,700 | I55: 285,594,090 | J55: 246,450,000 | K55: 267,500,000 | L55: 1,100,000 | M55: 572,250,000 | N55: 1,100,000 | O55: 1,100,000 | P55: 2,200,000
A56: Penataan Bangunan dan Lingkungan Kawasan Cagar Budaya, Kawasan Pariwisata, Kawasan Sistem Perkotaan Nasional dan Kawasan Strategis Lainnya | B56: 2,250,000,000 | C56: 1,450,000,000 | D56: =SUM(E56:N56) -> 1,446,700,000 | E56: 0 | F56: 5,566,290 | G56: 51,566,920 | H56: 15,572,700 | I56: 285,594,090 | J56: 246,450,000 | K56: 267,500,000 | L56: 1,100,000 | M56: 572,250,000 | N56: 1,100,000 | O56: 1,100,000 | P56: 2,200,000
A57: PROGRAM PENYELENGGARAAN JALAN | B57: 116,856,007,049 | C57: 116,616,005,452 | E57: 158,191,648 | F57: 1,254,393,082 | G57: 13,344,036,082 | H57: 16,306,659,907 | I57: 26,553,574,387 | J57: 28,829,490,139 | K57: 15,629,998,794 | L57: 13,289,887,236 | M57: 788,491,786 | N57: 198,014,436 | O57: 167,639,668 | P57: 95,628,286
A58: Penyelenggaraan Jalan Kabupaten/Kota | B58: 116,856,007,049 | C58: 116,616,005,452 | E58: 158,191,648 | F58: 1,254,393,082 | G58: 13,344,036,082 | H58: 16,306,659,907 | I58: 26,553,574,387 | J58: 28,829,490,139 | K58: 15,629,998,794 | L58: 13,289,887,236 | M58: 788,491,786 | N58: 198,014,436 | O58: 167,639,668 | P58: 95,628,286
A59: Pengelolaan Leger Jalan | B59: 185,200,000 | C59: 185,200,000 | D59: =SUM(E59:N59) -> 174,778,600 | E59: 21,427,590 | F59: 26,604,160 | G59: 28,304,160 | H59: 24,332,580 | I59: 18,906,160 | J59: 15,204,160 | K59: 13,143,510 | L59: 13,403,960 | M59: 8,236,160 | N59: 5,216,160 | O59: 5,216,160 | P59: 5,205,240
A60: Penyusunan Rencana, Kebijakan, Strategi dan Teknis Pengembangan Jaringan Jalan serta Perencanaan Teknis Penyelenggaraan Jalan dan Jembatan | B60: 200,000,000 | C60: 200,000,000 | D60: 200,000,000 | E60: 1,891,650 | F60: 10,230,500 | G60: 5,750,000 | H60: 160,200,000 | I60: 5,280,500 | J60: 2,650,000 | K60: 5,250,000 | L60: 3,500,000 | M60: 5,247,350 | N60: 0 | O60: 0 | P60: 0
A61: Penggantian Jembatan | B61: 4,662,500,000 | C61: 4,662,500,000 | D61: 4,662,500,000 | E61: 0 | F61: 1,039,900 | G61: 1,328,616,180 | H61: 1,673,210,980 | I61: 1,118,210,980 | J61: 533,210,980 | K61: 8,210,980 | L61: 0 | M61: 0 | N61: 0 | O61: 0 | P61: 0
A62: Pembangunan Jalan | B62: 384,685,000 | C62: 384,685,000 | D62: 384,685,000 | E62: 0 | F62: 0 | G62: 0 | H62: 0 | I62: 0 | J62: 0 | K62: 384,685,000 | L62: 0 | M62: 0 | N62: 0 | O62: 0 | P62: 0
A63: Rekonstruksi Jalan | B63: 63,783,619,380 | C63: 62,183,619,380 | D63: 62,151,538,476 | E63: 16,040,452 | F63: 413,384,543 | G63: 10,077,983,543 | H63: 8,036,400,643 | I63: 15,698,756,043 | J63: 13,084,411,443 | K63: 7,281,240,452 | L63: 7,246,240,452 | M63: 281,040,452 | N63: 16,040,452 | O63: 16,040,452 | P63: 16,040,452
A64: Pemeliharaan Berkala Jalan | B64: 0 | C64: 0 | D64: 0 | E64: 0 | F64: 0 | G64: 0 | H64: 0 | I64: 0 | J64: 0 | K64: 0 | L64: 0 | M64: 0 | N64: 0 | O64: 0 | P64: 0
A65: Pelebaran Jalan Menuju Standar | B65: 200,000,000 | C65: 200,000,000 | D65: 200,000,000 | E65: 0 | F65: 0 | G65: 0 | H65: 100,000,000 | I65: 100,000,000 | J65: 0 | K65: 0 | L65: 0 | M65: 0 | N65: 0 | O65: 0 | P65: 0
A66: Pemeliharaan Rutin Jembatan | B66: 150,000,000 | C66: 150,000,000 | D66: 150,000,000 | E66: 0 | F66: 0 | G66: 150,000,000 | H66: 0 | I66: 0 | J66: 0 | K66: 0 | L66: 0 | M66: 0 | N66: 0 | O66: 0 | P66: 0
A67: Pembangunan Jembatan | B67: 0 | C67: 0 | D67: 0 | E67: 0 | F67: 0 | G67: 0 | H67: 0 | I67: 0 | J67: 0 | K67: 0 | L67: 0 | M67: 0 | N67: 0 | O67: 0 | P67: 0
A68: Survey Kondisi Jalan/Jembatan | B68: 215,000,000 | C68: 215,000,000 | D68: 183,530,910 | E68: 21,454,776 | F68: 24,541,351 | G68: 22,846,351 | H68: 19,617,276 | I68: 16,397,276 | J68: 15,734,776 | K68: 15,734,776 | L68: 15,734,776 | M68: 15,734,776 | N68: 15,734,776 | O68: 15,734,776 | P68: 15,734,314
A69: Rehabilitasi Jalan | B69: 37,389,030,000 | C69: 39,329,030,000 | D69: 39,278,432,640 | E69: 25,298,680 | F69: 558,827,500 | G69: 80,655,928 | H69: 6,065,259,928 | I69: 9,353,384,928 | J69: 9,350,734,928 | K69: 7,681,999,708 | L69: 5,824,673,680 | M69: 312,298,680 | N69: 25,298,680 | O69: 25,298,680 | P69: 25,298,680
A70: Pemeliharaan Rutin Jalan | B70: 9,685,972,669 | C70: 9,105,971,072 | D70: 8,967,271,872 | E70: 72,078,500 | F70: 219,765,128 | G70: 1,649,879,920 | H70: 227,638,500 | I70: 242,638,500 | J70: 5,827,543,852 | K70: 239,734,368 | L70: 186,334,368 | M70: 165,934,368 | N70: 135,724,368 | O70: 105,349,600 | P70: 33,349,600
A71: PROGRAM PENGEMBANGAN JASA KONSTRUKSI | B71: 30,000,000 | C71: 30,000,000 | E71: 4,266,575 | F71: 4,960,500 | G71: 4,080,000 | H71: 4,728,500 | I71: 3,064,425 | J71: 1,800,000 | K71: 2,650,000 | L71: 1,800,000 | M71: 2,650,000 | N71: 0 | O71: 0 | P71: 0
A72: Penyelenggaraan Pelatihan Tenaga Terampil Konstruksi | B72: 30,000,000 | C72: 30,000,000 | E72: 4,266,575 | F72: 4,960,500 | G72: 4,080,000 | H72: 4,728,500 | I72: 3,064,425 | J72: 1,800,000 | K72: 2,650,000 | L72: 1,800,000 | M72: 2,650,000 | N72: 0 | O72: 0 | P72: 0
A73: Pelatihan Tenaga Kerja Konstruksi Kualifikasi Jabatan Operator, Teknisi atau Analis | B73: 30,000,000 | C73: 30,000,000 | D73: =SUM(E73:N73) -> 30,000,000 | E73: 4,266,575 | F73: 4,960,500 | G73: 4,080,000 | H73: 4,728,500 | I73: 3,064,425 | J73: 1,800,000 | K73: 2,650,000 | L73: 1,800,000 | M73: 2,650,000 | N73: 0 | O73: 0 | P73: 0
A74: PROGRAM PENYELENGGARAAN PENATAAN RUANG | B74: 850,000,000 | C74: 850,000,000 | E74: 18,542,260 | F74: 20,132,260 | G74: 82,424,430 | H74: 62,852,260 | I74: 73,561,710 | J74: 83,388,660 | K74: 78,324,710 | L74: 192,865,950 | M74: 70,467,210 | N74: 129,406,030 | O74: 15,869,710 | P74: 22,164,810
A75: Penetapan Rencana Tata Ruang Wilayah RTRW dan Rencana Rinci Tata Ruang RRTR Kabupaten/Kota | B75: 450,000,000 | C75: 450,000,000 | E75: 6,990,590 | F75: 6,990,590 | G75: 36,595,590 | H75: 36,140,590 | I75: 45,266,590 | J75: 39,024,540 | K75: 49,115,590 | L75: 69,865,590 | M75: 33,915,590 | N75: 111,163,560 | O75: 7,715,590 | P75: 7,215,590
A76: Pelaksanaan Persetujuan Substansi RDTR Kabupaten/Kota | B76: 450,000,000 | C76: 450,000,000 | D76: =SUM(E76:N76) -> 435,068,820 | E76: 6,990,590 | F76: 6,990,590 | G76: 36,595,590 | H76: 36,140,590 | I76: 45,266,590 | J76: 39,024,540 | K76: 49,115,590 | L76: 69,865,590 | M76: 33,915,590 | N76: 111,163,560 | O76: 7,715,590 | P76: 7,215,590
A77: Koordinasi dan Sinkronisasi Perencanaan Tata Ruang Daerah Kabupaten/Kota | B77: 200,000,000 | C77: 200,000,000 | E77: 6,115,590 | F77: 6,115,590 | G77: 11,115,590 | H77: 10,705,590 | I77: 16,408,040 | J77: 12,718,040 | K77: 10,718,040 | L77: 107,798,760 | M77: 3,355,540 | N77: 2,718,040 | O77: 2,718,040 | P77: 9,513,140
A78: Koordinasi dan Sinkronisasi Penyusunan RRTR Kabupaten/Kota | B78: 200,000,000 | C78: 200,000,000 | D78: =SUM(E78:N78) -> 187,768,820 | E78: 6,115,590 | F78: 6,115,590 | G78: 11,115,590 | H78: 10,705,590 | I78: 16,408,040 | J78: 12,718,040 | K78: 10,718,040 | L78: 107,798,760 | M78: 3,355,540 | N78: 2,718,040 | O78: 2,718,040 | P78: 9,513,140
A79: Koordinasi dan Sinkronisasi Pengendalian Pemanfaatan Ruang Daerah Kabupaten/Kota | B79: 200,000,000 | C79: 200,000,000 | E79: 5,436,080 | F79: 7,026,080 | G79: 34,713,250 | H79: 16,006,080 | I79: 11,887,080 | J79: 31,646,080 | K79: 18,491,080 | L79: 15,201,600 | M79: 33,196,080 | N79: 15,524,430 | O79: 5,436,080 | P79: 5,436,080
A80: Koordinasi Pelaksanaan Penataan Ruang | B80: 150,000,000 | C80: 150,000,000 | D80: =SUM(E80:N80) -> 139,127,840 | E80: 5,436,080 | F80: 7,026,080 | G80: 18,467,830 | H80: 16,006,080 | I80: 10,326,080 | J80: 16,026,080 | K80: 18,491,080 | L80: 14,048,020 | M80: 17,776,080 | N80: 15,524,430 | O80: 5,436,080 | P80: 5,436,080
A81: Operasionalisasi Tugas dan Fungsi Forum Penataan Ruang | B81: 50,000,000 | C81: 50,000,000 | D81: 50,000,000 | E81: 0 | F81: 0 | G81: 16,245,420 | H81: 0 | I81: 1,561,000 | J81: 15,620,000 | K81: 0 | L81: 1,153,580 | M81: 15,420,000 | N81: 0 | O81: 0 | P81: 0
B82: 176,970,036,961 | C82: 175,930,035,364 | E82: 1,189,470,530 | F82: 2,932,010,189 | G82: 27,490,246,217 | H82: 21,354,688,634 | I82: 35,705,250,724 | J82: 42,486,515,914 | K82: 21,116,775,220 | L82: 15,486,665,228 | M82: 3,332,869,428 | N82: 2,009,832,418 | O82: 1,400,835,390 | P82: 1,424,875,471
B83: 176,970,036,961 | C83: 175,930,035,364 | E83: 31,611,726,936 | H83: 99,546,455,273 | K83: 39,936,309,876 | N83: 4,835,543,279
B84: 176,970,036,961 | C84: 175,930,035,364 | E84: 131,158,182,209 | K84: 44,771,853,155
